Workbook

Sheet Cover
A1: =RIGHT(CELL("filename", $A$1), LEN(CELL("filename", $A$1)) - SEARCH("]", CELL("filename", $A$1))) -> Cover
C3: Model name: | D3: PR19 RCV adjustments feeder model
C4: Version number: | D4: 01s - July 2018 update
C5: Filename: | D5: ="PR19 RCV adjustments feeder model " & D4 & ".xlsm" -> PR19 RCV adjustments feeder model 01s - July 2018 update.xlsm
C6: Date: | D6: 2018-07-04
C7: Author: | D7: Ofwat and F1F9 UK Ltd
C8: Author contact information: | D8: PR19@ofwat.gsi.gov.uk
C11: Summary of model: | D11: The model is designed to take the RCV adjustment outputs from the PR09 and PR14 reconciliations and convert them for use in the PR19 financial model in
D12: line with Delivering Water 2020: PR19 methodology, chapter 12 (accounting for past delivery).
C14: Known limitations: | D14: The model has been subject to internal Ofwat quality assurance.
C16: Feedback: | D16: We would welcome feedback on the PR19 RCV adjustments feeder model. Please send any feedback to the following email address
D17: PR19@ofwat.gsi.gov.uk
A20: End of sheet

Sheet Change Log
A1: Change log
B3: # | C3: Issue | D3: Change | E3: Sheet | F3: Row
A5: 2017-12-01 | B5: 1 | C5: Company noted that the Ofwat feeder model incorrectly deflates prices from 2020 year end prices to 2017-18 financial year average prices by referencing the RPI March index value in the numerator. | D5: Corrected calculation of the deflation factor to reference CPIH March 2020 index value. | E5: Indexation | F5: 102
A6: 2017-12-01 | B6: 2 | C6: Companies noted differences in item labels between the Ofwat feeder model and the business plan tables | D6: Item labels have been aligned with the business plan tables | E6: Calc Summary_Output
A7: 2017-12-01 | B7: 3 | C7: Some business plan tables require RCV items in 2017-18 FYE (financial year end) CPIH deflated price base. | D7: Add 2017-18 FYE CPIH deflation factor | E7: Indexation | F7: 105
A8: 2017-12-01 | B8: 4 | C8: Some business plan tables require RCV items in 2017-18 FYE (financial year end) CPIH deflated price base. | D8: Add the 2017-18 FYE CPIH deflated items to the Calc and Summary_Output sheet | E8: Calc Summary_Output
A9: 2018-06-01 | B9: 5 | C9: Line descriptions for the CIS RCV inflation correction items are not consistent with business plan tables. | D9: Item labels have been aligned with the business plan tables App8 and App25. | E9: Inputs Calc Summary_Output
A10: 2018-06-01 | B10: 6 | C10: IN 18/09 Guidance for reporting operating leases in PR19 business plans. The RCV adjustment calculated for each wholesale control in business plan table App33 flows to business plan table App8. The RCV adjustments feeder model has been updated to reflect the revisions to table App8. | D10: Include the new IFRS16 related RCV adjustments in the calculation of the opening balances for the 2020 RCV RPI inflated and 2020 RCV CPIH inflated RCV. | E10: Inputs Indexation Calc Summary_Output
A11: 2018-06-01 | B11: 7 | C11: In response to a query a new business plan table has been created. The Ofwat feeder model has been updated to reflect the additional table Dmmy10. | D11: Include the Dmmy10 RCV adjustment in the calculation of the opening balances for the dummy price control 2020 RCV RPI inflated and 2020 RCV CPIH inflated RCV. | E11: Inputs Calc Summary_Output
A12: 2018-06-01 | B12: 8 | C12: Change email address | D12: Changed from water2020 mailbox to PR19 mailbox | E12: Cover
A13: 2018-07-01 | B13: 9 | C13: In response to a query the Ofwat feeder model has been updated to reflect additional block for the dummy control in table App9 and an additional line for the dummy control in table App8. | D13: Include the additional RCV adjustments for the dummy control in the calculation of the opening balances for the dummy price control 2020 RCV RPI inflated and 2020 RCV CPIH inflated RCV. | E13: Inputs Calc Summary_Output

Sheet Map & Key
A1: =RIGHT(CELL("filename", $A$1), LEN(CELL("filename", $A$1)) - SEARCH("]", CELL("filename", $A$1))) -> Map & Key
A3: GENERIC MODEL DESIGN
F5: ABOVE BONNET - USER INTERFACE
H8: Inputs | P8: Output Summary
F13: BELOW BONNET - CALCULATION ENGINE
H19: Input Transition | L19: Calculations | P19: Detailed Outputs
F25: Note: FAST strictly applicable below the bonnet
A28: MODEL MAP
F30: MODEL MAP
H32: INPUTS | L32: CALCULATIONS | V32: DOCUMENTATION
H36: =Inputs!$A$1 -> Inputs | L36: =Time!$A$1 -> Time | P36: =Summary_Output!$A$1 -> Summary_Output | V36: =$A$1 -> Map & Key
H37: All the hardcoded inputs used in the model for calculation. | L37: The model timeline and flag calculations are done in this sheet. | P37: A summary of links of major output of this model. | V37: Sheet references and model flow; Sheet tabs colours, colour coding, abbreviations, range names are mentioned in this sheet.
L39: =Indexation!$A$1 -> Indexation
L40: All the indexation related calculations are done in this sheet.
L42: =Calc!$A$1 -> Calc
L43: All the price regulations related calculations are done in this sheet.
A48: SHEET TABS
H50: Light Yellow | J50: Input sheets
H52: No colour (default Excel tab colour) | J52: Calculation and documentation sheets
H54: Pale Blue | J54: Key output sheets
H56: Turquoise | J56: Quality control sheets
H58: Yellow | J58: To be completed, temporary, restructured, or deleted
A61: COLOUR
B63: Font colour only
H64: Blue font | J64: Imported from another sheet
H66: Red font | J66: Exported to another sheet (except from Input sheets)
H68: Black font | J68: Within sheet link or calculation
B70: Font + shade combinations
H71: Black font + Light Yellow shade | J71: Inputs
H73: Black font + Light Grey shade on entire row | J73: Within-worksheet counter-flow
H75: Blue font + Light Grey shade on entire row | J75: Between-worksheet counter-flow
H77: Empty Cell with Light Grey shade | J77: Empty cells being deliberately referenced
B79: Other
H80: Black font + Pale Blue shade on entire row | J80: Section separator
H82: Light Turquoise shade | J82: Stored/dead/hard coded outputs
H84: Tan shade | J84: Pre-model time line actuals
H86: Yellow shade | J86: Work in progress / temporary
H88: Lime shade | J88: Values or logic to be reviewed
B90: Error checks & alerts
H91: Green shade | J91: OK
H93: Red shade | J93: Error
H95: Gold shade | J95: Alert
A98: ABBREVIATIONS
H100: BR | I100: Bio resources
H101: CPIH | I101: Consumer price index housing
H102: RCV | I102: Regulatory capital value
H103: RPI | I103: Retail price index
H104: WR | I104: Water resources
H105: WN | I105: Water network
H106: WWN | I106: Wastewater network
A109: NAMES
H111: NO NAME RANGES PRESENT IN THE MODEL
A114: LIST OF FUNCTIONS USED
H116: SUMPRODUCT | J116: Multiplies corresponding components in the given arrays, and returns the sum of those products.
H117: MATCH | J117: The MATCH function searches for a specified item in a range of cells, and then returns the relative position of that item in the range.
H118: INDEX | J118: Returns a value or the reference to a value from within a table or range, selected by the row and column number indexes
A121: End of sheet

Sheet F_Inputs
C1: PR19PD010_IN
A2: Acronym | B2: Reference | C2: Item description | D2: Unit | E2: Model | F2: Price Review 2019
F4: PR19 RUN 1: early view of past delivery
F5: Latest
F6: 2011-12 | G6: 2012-13 | H6: 2013-14 | I6: 2014-15 | J6: 2015-16 | K6: 2016-17 | L6: 2017-18 | M6: 2018-19 | N6: 2019-20 | O6: 2020-21 | P6: 2015-20 | Q6: 2014-20 | R6: PR19 application
A7: ANH | B7: BB3905AL | C7: Consumer Price Index (with housing) for April | D7: nr | E7: Price Review 2019 | F7: 93.3 | G7: 95.9 | H7: 98 | I7: 99.6 | J7: 99.9 | K7: 100.6 | L7: 103.2 | M7: 105.6768 | N7: 107.8960128 | O7: 110.0539331
A8: ANH | B8: BB3905MY | C8: Consumer Price Index (with housing) for May | D8: nr | E8: Price Review 2019 | F8: 93.5 | G8: 95.9 | H8: 98.2 | I8: 99.6 | J8: 100.1 | K8: 100.8 | L8: 103.5 | M8: 105.984 | N8: 108.209664 | O8: 110.3738573
A9: ANH | B9: BB3905JN | C9: Consumer Price Index (with housing) for June | D9: nr | E9: Price Review 2019 | F9: 93.5 | G9: 95.6 | H9: 98 | I9: 99.8 | J9: 100.1 | K9: 101 | L9: 103.5 | M9: 105.984 | N9: 108.209664 | O9: 110.3738573
A10: ANH | B10: BB3905JL | C10: Consumer Price Index (with housing) for July | D10: nr | E10: Price Review 2019 | F10: 93.5 | G10: 95.7 | H10: 98 | I10: 99.6 | J10: 100 | K10: 100.9 | L10: 103.5 | M10: 105.984 | N10: 108.209664 | O10: 110.3738573
A11: ANH | B11: BB3905AT | C11: Consumer Price Index (with housing) for August | D11: nr | E11: Price Review 2019 | F11: 93.9 | G11: 96.1 | H11: 98.4 | I11: 99.9 | J11: 100.3 | K11: 101.2 | L11: 104 | M11: 106.496 | N11: 108.732416 | O11: 110.9070643
A12: ANH | B12: BB3905SR | C12: Consumer Price Index (with housing) for September | D12: nr | E12: Price Review 2019 | F12: 94.5 | G12: 96.4 | H12: 98.7 | I12: 100 | J12: 100.2 | K12: 101.5 | L12: 104.3 | M12: 106.8032 | N12: 109.0460672 | O12: 111.2269885
A13: ANH | B13: BB3905OR | C13: Consumer Price Index (with housing) for October | D13: nr | E13: Price Review 2019 | F13: 94.5 | G13: 96.8 | H13: 98.8 | I13: 100.1 | J13: 100.3 | K13: 101.6 | L13: 104.4 | M13: 106.9056 | N13: 109.1506176 | O13: 111.33363
A14: ANH | B14: BB3905NR | C14: Consumer Price Index (with housing) for November | D14: nr | E14: Price Review 2019 | F14: 94.7 | G14: 97 | H14: 98.8 | I14: 99.9 | J14: 100.3 | K14: 101.8 | L14: 104.7 | M14: 107.2128 | N14: 109.4642688 | O14: 111.6535542
A15: ANH | B15: BB3905DR | C15: Consumer Price Index (with housing) for December | D15: nr | E15: Price Review 2019 | F15: 95 | G15: 97.3 | H15: 99.2 | I15: 99.9 | J15: 100.4 | K15: 102.2 | L15: 105 | M15: 107.52 | N15: 109.77792 | O15: 111.9734784
A16: ANH | B16: BB3905JY | C16: Consumer Price Index (with housing) for January | D16: nr | E16: Price Review 2019 | F16: 94.7 | G16: 97 | H16: 98.7 | I16: 99.2 | J16: 99.9 | K16: 101.8 | L16: 104.5 | M16: 107.008 | N16: 109.255168 | O16: 111.4402714
A17: ANH | B17: BB3905FY | C17: Consumer Price Index (with housing) for February | D17: nr | E17: Price Review 2019 | F17: 95.2 | G17: 97.5 | H17: 99.1 | I17: 99.5 | J17: 100.1 | K17: 102.4 | L17: 104.9 | M17: 107.4176 | N17: 109.6733696 | O17: 111.866837
A18: ANH | B18: BB3905MH | C18: Consumer Price Index (with housing) for March | D18: nr | E18: Price Review 2019 | F18: 95.4 | G18: 97.8 | H18: 99.3 | I18: 99.6 | J18: 100.4 | K18: 102.7 | L18: 105.1 | M18: 107.6224 | N18: 109.8824704 | O18: 112.0801198
A19: ANH | B19: BB3805AL | C19: Retail Price Index for April | D19: nr | E19: Price Review 2019 | F19: 234.4 | G19: 242.5 | H19: 249.5 | I19: 255.7 | J19: 258 | K19: 261.4 | L19: 270.6 | M19: 279.8004 | N19: 288.4742124 | O19: 297.1284388
A20: ANH | B20: BB3805MY | C20: Retail Price Index for May | D20: nr | E20: Price Review 2019 | F20: 235.2 | G20: 242.4 | H20: 250 | I20: 255.9 | J20: 258.5 | K20: 262.1 | L20: 271.7 | M20: 280.9378 | N20: 289.6468718 | O20: 298.336278
A21: ANH | B21: BB3805JN | C21: Retail Price Index for June | D21: nr | E21: Price Review 2019 | F21: 235.2 | G21: 241.8 | H21: 249.7 | I21: 256.3 | J21: 258.9 | K21: 263.1 | L21: 272.3 | M21: 281.5582 | N21: 290.2865042 | O21: 298.9950993
A22: ANH | B22: BB3805JL | C22: Retail Price Index for July | D22: nr | E22: Price Review 2019 | F22: 234.7 | G22: 242.1 | H22: 249.7 | I22: 256 | J22: 258.6 | K22: 263.4 | L22: 272.9 | M22: 282.1786 | N22: 290.9261366 | O22: 299.6539207
A23: ANH | B23: BB3805AT | C23: Retail Price Index for August | D23: nr | E23: Price Review 2019 | F23: 236.1 | G23: 243 | H23: 251 | I23: 257 | J23: 259.8 | K23: 264.4 | L23: 274.7 | M23: 284.0398 | N23: 292.8450338 | O23: 301.6303848
A24: ANH | B24: BB3805SR | C24: Retail Price Index for September | D24: nr | E24: Price Review 2019 | F24: 237.9 | G24: 244.2 | H24: 251.9 | I24: 257.6 | J24: 259.6 | K24: 264.9 | L24: 275.1 | M24: 284.4534 | N24: 293.2714554 | O24: 302.0695991
A25: ANH | B25: BB3805OR | C25: Retail Price Index for October | D25: nr | E25: Price Review 2019 | F25: 238 | G25: 245.6 | H25: 251.9 | I25: 257.7 | J25: 259.5 | K25: 264.8 | L25: 275.3 | M25: 284.6602 | N25: 293.4846662 | O25: 302.2892062
A26: ANH | B26: BB3805NR | C26: Retail Price Index for November | D26: nr | E26: Price Review 2019 | F26: 238.5 | G26: 245.6 | H26: 252.1 | I26: 257.1 | J26: 259.8 | K26: 265.5 | L26: 275.8 | M26: 285.1772 | N26: 294.0176932 | O26: 302.838224
A27: ANH | B27: BB3805DR | C27: Retail Price Index for December | D27: nr | E27: Price Review 2019 | F27: 239.4 | G27: 246.8 | H27: 253.4 | I27: 257.5 | J27: 260.6 | K27: 267.1 | L27: 278.1 | M27: 287.5554 | N27: 296.4696174 | O27: 305.3637059
A28: ANH | B28: BB3805JY | C28: Retail Price Index for January | D28: nr | E28: Price Review 2019 | F28: 238 | G28: 245.8 | H28: 252.6 | I28: 255.4 | J28: 258.8 | K28: 265.5 | L28: 276 | M28: 285.384 | N28: 294.230904 | O28: 303.0578311
A29: ANH | B29: BB3805FY | C29: Retail Price Index for February | D29: nr | E29: Price Review 2019 | F29: 239.9 | G29: 247.6 | H29: 254.2 | I29: 256.7 | J29: 260 | K29: 268.4 | L29: 278.1 | M29: 287.5554 | N29: 296.4696174 | O29: 305.3637059
A30: ANH | B30: BB3805MH | C30: Retail Price Index for March | D30: nr | E30: Price Review 2019 | F30: 240.8 | G30: 248.7 | H30: 254.8 | I30: 257.1 | J30: 261.1 | K30: 269.3 | L30: 278.3 | M30: 287.7622 | N30: 296.6828282 | O30: 305.583313
A31: ANH | B31: APP8001W | C31: RCV year end balances - Water RCV closing balance at 31 March 2020 - Wholesale water closing RCV at 31 March 2020 in 2012-13 prices (from PR14 FD) | D31: £m | E31: Price Review 2019
A32: ANH | B32: C00572_L021 | C32: Water - Total Adjustment RCV carry forward to PR19 | D32: £m | E32: Price Review 2019 | P32: -24.53766372
A33: ANH | B33: APP25001 | C33: Further 2010-15 reconciliation adjustments - Water ~ CIS RCV inflation correction | D33: £m | E33: Price Review 2019 | P33: -50.61785831
A34: ANH | B34: C_APP27029_PD002 | C34: Net performance payment / (penalty) applied to RCV for end of period ODI adjustments ~ Water resources | D34: £m | E34: Price Review 2019 | J34: 0 | K34: 0 | L34: 0 | M34: 0 | N34: 0 | R34: 0
A35: ANH | B35: C_APP27030_PD002 | C35: Net performance payment / (penalty) applied to RCV for end of period ODI adjustments ~ Water network plus | D35: £m | E35: Price Review 2019 | J35: 0 | K35: 0 | L35: 0 | M35: 0 | N35: 0 | R35: 0
A36: ANH | B36: C_WS15025_PR19PD006 | C36: Water: RCV adjustment from totex menu model | D36: £m | E36: Price Review 2019 | N36: -6.709976904
A37: ANH | B37: APP8009W | C37: RCV year end balances - Water RCV closing balance at 31 March 2020 - Water ~ Other adjustment to wholesale RCV | D37: £m | E37: Price Review 2019
A38: ANH | B38: C_A7010W_PR19PD003 | C38: NPV effect of 50% of proceeds from disposals of interest in land | D38: £m | E38: Price Review 2019 | N38: -0.8138892356
A39: ANH | B39: WS12019WR | C39: RCV ~ 31 March 2020 ( % of total wholesale water) - Water resources | D39: % | E39: Price Review 2019
A40: ANH | B40: APP33021WR | C40: Water resources - RCV adjustment | D40: £m | E40: Price Review 2019
A41: ANH | B41: APP33021WNP | C41: Water network plus - RCV adjustment | D41: £m | E41: Price Review 2019
A42: ANH | B42: APP8001WW | C42: RCV year end balances - Wastewater RCV closing balance at 31 March 2020 - Wholesale wastewater closing RCV at 31 March 2020 in 2012-13 prices (PR14 FD) | D42: £m | E42: Price Review 2019
A43: ANH | B43: C00579_L021 | C43: Wastewater - Total Adjustment RCV carry forward to PR19 | D43: £m | E43: Price Review 2019 | P43: -2.158102757
A44: ANH | B44: APP25002 | C44: Further 2010-15 reconciliation adjustments - Wastewater ~ CIS RCV inflation correction | D44: £m | E44: Price Review 2019 | P44: -64.96938355
A45: ANH | B45: C_APP27031_PD002 | C45: Net performance payment / (penalty) applied to RCV for end of period ODI adjustments ~ Wastewater network plus | D45: £m | E45: Price Review 2019 | J45: 0 | K45: 0 | L45: 0 | M45: 0 | N45: 0 | R45: 0
A46: ANH | B46: C_WWS15020_PR19PD006 | C46: Wastewater: RCV adjustment from totex menu model | D46: £m | E46: Price Review 2019 | N46: -131.3036848
A47: ANH | B47: APP8009WW | C47: RCV year end balances - Wastewater RCV closing balance at 31 March 2020 - Wastewater ~ Other adjustment to wholesale RCV | D47: £m | E47: Price Review 2019
A48: ANH | B48: C_A7010WW_PR19PD003 | C48: NPV effect of 50% of proceeds from disposals of interest in land | D48: £m | E48: Price Review 2019 | N48: -3.973698382
A49: ANH | B49: WWS12016BIO | C49: RCV split 31 March 2020 - RCV (prior to midnight adjustments) - Bioresources | D49: £m | E49: Price Review 2019
A50: ANH | B50: APP33021BIO | C50: Bioresources - RCV adjustment | D50: £m | E50: Price Review 2019
A51: ANH | B51: APP33021WWNP | C51: Wastewater network plus - RCV adjustment | D51: £m | E51: Price Review 2019
A52: ANH | B52: RCV1011DMMY | C52: RCV year end balances - Dummy RCV - Dummy RCV (prior to midnight adjustments) 31 March 2020 | D52: £m | E52: Price Review 2019
A53: ANH | B53: C_APP27032_PD002 | C53: Net performance payment / (penalty) applied to RCV for end of period ODI adjustments ~ Thames Tideway | D53: £m | E53: Price Review 2019 | J53: 0 | K53: 0 | L53: 0 | M53: 0 | N53: 0 | R53: 0
A54: ANH | B54: C_WWS15020_DMMY_PR19PD006 | C54: Wastewater: RCV adjustment from totex menu model (TTT) | D54: £m | E54: Price Review 2019
A55: ANH | B55: APP8009DMMY | C55: RCV year end balances - Dummy RCV - Dummy ~ Other adjustment to wholesale RCV | D55: £m | E55: Price Review 2019
A56: ANH | B56: APP33021DMMY | C56: Dummy - RCV adjustment | D56: £m | E56: Price Review 2019

Sheet Inputs
A1: =RIGHT(CELL("FILENAME", $A$1), LEN(CELL("FILENAME", $A$1)) - SEARCH("]", CELL("FILENAME", $A$1))) -> Inputs
E2: =Time!E$25 -> Model period ending | J2: =Time!J$25 -> 2013-03-31 | K2: =Time!K$25 -> 2014-03-31 | L2: =Time!L$25 -> 2015-03-31 | M2: =Time!M$25 -> 2016-03-31 | N2: =Time!N$25 -> 2017-03-31 | O2: =Time!O$25 -> 2018-03-31 | P2: =Time!P$25 -> 2019-03-31 | Q2: =Time!Q$25 -> 2020-03-31 | R2: =Time!R$25 -> 2021-03-31 | S2: =Time!S$25 -> 2022-03-31 | T2: =Time!T$25 -> 2023-03-31 | U2: =Time!U$25 -> 2024-03-31
E3: =Time!E$80 -> Timeline label | J3: =Time!J$80 -> Pre-Fcst | K3: =Time!K$80 -> Pre-Fcst | L3: =Time!L$80 -> Pre-Fcst | M3: =Time!M$80 -> Pre-Fcst | N3: =Time!N$80 -> Pre-Fcst | O3: =Time!O$80 -> Pre-Fcst | P3: =Time!P$80 -> Pre-Fcst | Q3: =Time!Q$80 -> Pre-Fcst | R3: =Time!R$80 -> Forecast | S3: =Time!S$80 -> Forecast | T3: =Time!T$80 -> Forecast | U3: =Time!U$80 -> Forecast
E4: =Time!E$103 -> Financial year ending | J4: =Time!J$103 -> 2013 | K4: =Time!K$103 -> 2014 | L4: =Time!L$103 -> 2015 | M4: =Time!M$103 -> 2016 | N4: =Time!N$103 -> 2017 | O4: =Time!O$103 -> 2018 | P4: =Time!P$103 -> 2019 | Q4: =Time!Q$103 -> 2020 | R4: =Time!R$103 -> 2021 | S4: =Time!S$103 -> 2022 | T4: =Time!T$103 -> 2023 | U4: =Time!U$103 -> 2024
A5: =IF(COUNTIF(A6:A140,"< 0") + COUNTIF(A6:A140,">0") <> 0, 1, 0) -> 0 | D5: Input references | E5: =Time!E$10 -> Model column counter | F5: Constant | G5: Unit | H5: Total | J5: =Time!J$10 -> 1 | K5: =Time!K$10 -> 2 | L5: =Time!L$10 -> 3 | M5: =Time!M$10 -> 4 | N5: =Time!N$10 -> 5 | O5: =Time!O$10 -> 6 | P5: =Time!P$10 -> 7 | Q5: =Time!Q$10 -> 8 | R5: =Time!R$10 -> 9 | S5: =Time!S$10 -> 10 | T5: =Time!T$10 -> 11 | U5: =Time!U$10 -> 12
E6: [Used in formula range - Do not delete]
A8: A: TIME
B10: Timeline setup
C12: Timeline start dates
A13: C001 | E13: 1st model column start date | F13: 2012-04-01 | G13: date | H13: Date should be the first date of the financial year
C15: Financial year inputs
A16: C002 | E16: First modelling column financial year# | F16: 2013 | G16: year # | H16: Financial model start year
A17: C003 | E17: Financial year end month number | F17: 3 | G17: month # | H17: Month of financial year end for financial model
C19: Timeline labels
A20: C004 | E20: Pre - forecast period | F20: Pre-Fcst | G20: label
A21: C005 | E21: Forecast period | F21: Forecast | G21: label
A22: C006 | E22: Post - forecast period | F22: Post-Fcst | G22: label
B24: Project dates
A26: C007 | E26: Forecast start date | F26: 2020-04-01 | G26: date
A27: C008 | E27: Forecast duration | F27: 5 | G27: years
A28: C009 | E28: Forecast duration (text) | F28: =YEAR(F26) & "-" & TEXT(DATE(YEAR(F26) + F27, 1, 1), "yy") -> 2020-25 | G28: years #
A31: B: INDEXATION
B33: CPIH INDEXATION
A35: =F_Inputs!B7 -> BB3905AL | E35: Consumer Price Index for April | G35: index | J35: =F_Inputs!G7 -> 95.9 | K35: =F_Inputs!H7 -> 98 | L35: =F_Inputs!I7 -> 99.6 | M35: =F_Inputs!J7 -> 99.9 | N35: =F_Inputs!K7 -> 100.6 | O35: =F_Inputs!L7 -> 103.2 | P35: =F_Inputs!M7 -> 105.6768 | Q35: =F_Inputs!N7 -> 107.8960128
A36: =F_Inputs!B8 -> BB3905MY | E36: Consumer Price Index for May | G36: index | J36: =F_Inputs!G8 -> 95.9 | K36: =F_Inputs!H8 -> 98.2 | L36: =F_Inputs!I8 -> 99.6 | M36: =F_Inputs!J8 -> 100.1 | N36: =F_Inputs!K8 -> 100.8 | O36: =F_Inputs!L8 -> 103.5 | P36: =F_Inputs!M8 -> 105.984 | Q36: =F_Inputs!N8 -> 108.209664
A37: =F_Inputs!B9 -> BB3905JN | E37: Consumer Price Index for June | G37: index | J37: =F_Inputs!G9 -> 95.6 | K37: =F_Inputs!H9 -> 98 | L37: =F_Inputs!I9 -> 99.8 | M37: =F_Inputs!J9 -> 100.1 | N37: =F_Inputs!K9 -> 101 | O37: =F_Inputs!L9 -> 103.5 | P37: =F_Inputs!M9 -> 105.984 | Q37: =F_Inputs!N9 -> 108.209664
A38: =F_Inputs!B10 -> BB3905JL | E38: Consumer Price Index for July | G38: index | J38: =F_Inputs!G10 -> 95.7 | K38: =F_Inputs!H10 -> 98 | L38: =F_Inputs!I10 -> 99.6 | M38: =F_Inputs!J10 -> 100 | N38: =F_Inputs!K10 -> 100.9 | O38: =F_Inputs!L10 -> 103.5 | P38: =F_Inputs!M10 -> 105.984 | Q38: =F_Inputs!N10 -> 108.209664
A39: =F_Inputs!B11 -> BB3905AT | E39: Consumer Price Index for August | G39: index | J39: =F_Inputs!G11 -> 96.1 | K39: =F_Inputs!H11 -> 98.4 | L39: =F_Inputs!I11 -> 99.9 | M39: =F_Inputs!J11 -> 100.3 | N39: =F_Inputs!K11 -> 101.2 | O39: =F_Inputs!L11 -> 104 | P39: =F_Inputs!M11 -> 106.496 | Q39: =F_Inputs!N11 -> 108.732416
A40: =F_Inputs!B12 -> BB3905SR | E40: Consumer Price Index for September | G40: index | J40: =F_Inputs!G12 -> 96.4 | K40: =F_Inputs!H12 -> 98.7 | L40: =F_Inputs!I12 -> 100 | M40: =F_Inputs!J12 -> 100.2 | N40: =F_Inputs!K12 -> 101.5 | O40: =F_Inputs!L12 -> 104.3 | P40: =F_Inputs!M12 -> 106.8032 | Q40: =F_Inputs!N12 -> 109.0460672
A41: =F_Inputs!B13 -> BB3905OR | E41: Consumer Price Index for October | G41: index | J41: =F_Inputs!G13 -> 96.8 | K41: =F_Inputs!H13 -> 98.8 | L41: =F_Inputs!I13 -> 100.1 | M41: =F_Inputs!J13 -> 100.3 | N41: =F_Inputs!K13 -> 101.6 | O41: =F_Inputs!L13 -> 104.4 | P41: =F_Inputs!M13 -> 106.9056 | Q41: =F_Inputs!N13 -> 109.1506176
A42: =F_Inputs!B14 -> BB3905NR | E42: Consumer Price Index for November | G42: index | J42: =F_Inputs!G14 -> 97 | K42: =F_Inputs!H14 -> 98.8 | L42: =F_Inputs!I14 -> 99.9 | M42: =F_Inputs!J14 -> 100.3 | N42: =F_Inputs!K14 -> 101.8 | O42: =F_Inputs!L14 -> 104.7 | P42: =F_Inputs!M14 -> 107.2128 | Q42: =F_Inputs!N14 -> 109.4642688
A43: =F_Inputs!B15 -> BB3905DR | E43: Consumer Price Index for December | G43: index | J43: =F_Inputs!G15 -> 97.3 | K43: =F_Inputs!H15 -> 99.2 | L43: =F_Inputs!I15 -> 99.9 | M43: =F_Inputs!J15 -> 100.4 | N43: =F_Inputs!K15 -> 102.2 | O43: =F_Inputs!L15 -> 105 | P43: =F_Inputs!M15 -> 107.52 | Q43: =F_Inputs!N15 -> 109.77792
A44: =F_Inputs!B16 -> BB3905JY | E44: Consumer Price Index for January | G44: index | J44: =F_Inputs!G16 -> 97 | K44: =F_Inputs!H16 -> 98.7 | L44: =F_Inputs!I16 -> 99.2 | M44: =F_Inputs!J16 -> 99.9 | N44: =F_Inputs!K16 -> 101.8 | O44: =F_Inputs!L16 -> 104.5 | P44: =F_Inputs!M16 -> 107.008 | Q44: =F_Inputs!N16 -> 109.255168
A45: =F_Inputs!B17 -> BB3905FY | E45: Consumer Price Index for February | G45: index | J45: =F_Inputs!G17 -> 97.5 | K45: =F_Inputs!H17 -> 99.1 | L45: =F_Inputs!I17 -> 99.5 | M45: =F_Inputs!J17 -> 100.1 | N45: =F_Inputs!K17 -> 102.4 | O45: =F_Inputs!L17 -> 104.9 | P45: =F_Inputs!M17 -> 107.4176 | Q45: =F_Inputs!N17 -> 109.6733696
A46: =F_Inputs!B18 -> BB3905MH | E46: Consumer Price Index for March | G46: index | J46: =F_Inputs!G18 -> 97.8 | K46: =F_Inputs!H18 -> 99.3 | L46: =F_Inputs!I18 -> 99.6 | M46: =F_Inputs!J18 -> 100.4 | N46: =F_Inputs!K18 -> 102.7 | O46: =F_Inputs!L18 -> 105.1 | P46: =F_Inputs!M18 -> 107.6224 | Q46: =F_Inputs!N18 -> 109.8824704
E48: CPIH: Assumed percentage increase for unpopulated monthly values | G48: %
B50: RPI INDEXATION
A52: =F_Inputs!B19 -> BB3805AL | E52: Retail Price Index for April | G52: index | J52: =F_Inputs!G19 -> 242.5 | K52: =F_Inputs!H19 -> 249.5 | L52: =F_Inputs!I19 -> 255.7 | M52: =F_Inputs!J19 -> 258 | N52: =F_Inputs!K19 -> 261.4 | O52: =F_Inputs!L19 -> 270.6 | P52: =F_Inputs!M19 -> 279.8004 | Q52: =F_Inputs!N19 -> 288.4742124
A53: =F_Inputs!B20 -> BB3805MY | E53: Retail Price Index for May | G53: index | J53: =F_Inputs!G20 -> 242.4 | K53: =F_Inputs!H20 -> 250 | L53: =F_Inputs!I20 -> 255.9 | M53: =F_Inputs!J20 -> 258.5 | N53: =F_Inputs!K20 -> 262.1 | O53: =F_Inputs!L20 -> 271.7 | P53: =F_Inputs!M20 -> 280.9378 | Q53: =F_Inputs!N20 -> 289.6468718
A54: =F_Inputs!B21 -> BB3805JN | E54: Retail Price Index for June | G54: index | J54: =F_Inputs!G21 -> 241.8 | K54: =F_Inputs!H21 -> 249.7 | L54: =F_Inputs!I21 -> 256.3 | M54: =F_Inputs!J21 -> 258.9 | N54: =F_Inputs!K21 -> 263.1 | O54: =F_Inputs!L21 -> 272.3 | P54: =F_Inputs!M21 -> 281.5582 | Q54: =F_Inputs!N21 -> 290.2865042
A55: =F_Inputs!B22 -> BB3805JL | E55: Retail Price Index for July | G55: index | J55: =F_Inputs!G22 -> 242.1 | K55: =F_Inputs!H22 -> 249.7 | L55: =F_Inputs!I22 -> 256 | M55: =F_Inputs!J22 -> 258.6 | N55: =F_Inputs!K22 -> 263.4 | O55: =F_Inputs!L22 -> 272.9 | P55: =F_Inputs!M22 -> 282.1786 | Q55: =F_Inputs!N22 -> 290.9261366
A56: =F_Inputs!B23 -> BB3805AT | E56: Retail Price Index for August | G56: index | J56: =F_Inputs!G23 -> 243 | K56: =F_Inputs!H23 -> 251 | L56: =F_Inputs!I23 -> 257 | M56: =F_Inputs!J23 -> 259.8 | N56: =F_Inputs!K23 -> 264.4 | O56: =F_Inputs!L23 -> 274.7 | P56: =F_Inputs!M23 -> 284.0398 | Q56: =F_Inputs!N23 -> 292.8450338
A57: =F_Inputs!B24 -> BB3805SR | E57: Retail Price Index for September | G57: index | J57: =F_Inputs!G24 -> 244.2 | K57: =F_Inputs!H24 -> 251.9 | L57: =F_Inputs!I24 -> 257.6 | M57: =F_Inputs!J24 -> 259.6 | N57: =F_Inputs!K24 -> 264.9 | O57: =F_Inputs!L24 -> 275.1 | P57: =F_Inputs!M24 -> 284.4534 | Q57: =F_Inputs!N24 -> 293.2714554
A58: =F_Inputs!B25 -> BB3805OR | E58: Retail Price Index for October | G58: index | J58: =F_Inputs!G25 -> 245.6 | K58: =F_Inputs!H25 -> 251.9 | L58: =F_Inputs!I25 -> 257.7 | M58: =F_Inputs!J25 -> 259.5 | N58: =F_Inputs!K25 -> 264.8 | O58: =F_Inputs!L25 -> 275.3 | P58: =F_Inputs!M25 -> 284.6602 | Q58: =F_Inputs!N25 -> 293.4846662
A59: =F_Inputs!B26 -> BB3805NR | E59: Retail Price Index for November | G59: index | J59: =F_Inputs!G26 -> 245.6 | K59: =F_Inputs!H26 -> 252.1 | L59: =F_Inputs!I26 -> 257.1 | M59: =F_Inputs!J26 -> 259.8 | N59: =F_Inputs!K26 -> 265.5 | O59: =F_Inputs!L26 -> 275.8 | P59: =F_Inputs!M26 -> 285.1772 | Q59: =F_Inputs!N26 -> 294.0176932
A60: =F_Inputs!B27 -> BB3805DR | E60: Retail Price Index for December | G60: index | J60: =F_Inputs!G27 -> 246.8 | K60: =F_Inputs!H27 -> 253.4 | L60: =F_Inputs!I27 -> 257.5 | M60: =F_Inputs!J27 -> 260.6 | N60: =F_Inputs!K27 -> 267.1 | O60: =F_Inputs!L27 -> 278.1 | P60: =F_Inputs!M27 -> 287.5554 | Q60: =F_Inputs!N27 -> 296.4696174
A61: =F_Inputs!B28 -> BB3805JY | E61: Retail Price Index for January | G61: index | J61: =F_Inputs!G28 -> 245.8 | K61: =F_Inputs!H28 -> 252.6 | L61: =F_Inputs!I28 -> 255.4 | M61: =F_Inputs!J28 -> 258.8 | N61: =F_Inputs!K28 -> 265.5 | O61: =F_Inputs!L28 -> 276 | P61: =F_Inputs!M28 -> 285.384 | Q61: =F_Inputs!N28 -> 294.230904
A62: =F_Inputs!B29 -> BB3805FY | E62: Retail Price Index for February | G62: index | J62: =F_Inputs!G29 -> 247.6 | K62: =F_Inputs!H29 -> 254.2 | L62: =F_Inputs!I29 -> 256.7 | M62: =F_Inputs!J29 -> 260 | N62: =F_Inputs!K29 -> 268.4 | O62: =F_Inputs!L29 -> 278.1 | P62: =F_Inputs!M29 -> 287.5554 | Q62: =F_Inputs!N29 -> 296.4696174
A63: =F_Inputs!B30 -> BB3805MH | E63: Retail Price Index for March | G63: index | J63: =F_Inputs!G30 -> 248.7 | K63: =F_Inputs!H30 -> 254.8 | L63: =F_Inputs!I30 -> 257.1 | M63: =F_Inputs!J30 -> 261.1 | N63: =F_Inputs!K30 -> 269.3 | O63: =F_Inputs!L30 -> 278.3 | P63: =F_Inputs!M30 -> 287.7622 | Q63: =F_Inputs!N30 -> 296.6828282
E65: RPI: Assumed percentage increase for unpopulated monthly values | G65: %
B67: Inflation
A69: C010 | E69: Year reference for FYA base price 1 | F69: 2013 | G69: year #
A70: C011 | E70: Year reference for FYA base price 2 | F70: 2018 | G70: year #
A71: C012 | E71: Year reference for FYE base price | F71: 2018 | G71: year #
A72: C013 | E72: Year reference for FYE end price | F72: 2020 | G72: year #
B74: Deflation
A76: C014 | E76: Year reference for FYE base price | F76: 2020 | G76: year #
A77: C015 | E77: Year reference for FYA end price | F77: 2018 | G77: year #
A78: C016 | E78: Year reference for FYE base price - IFRS 16 | F78: 2018 | G78: year #
A81: C: RCV INPUTS
B83: Water services
A85: =F_Inputs!B31 -> APP8001W | E85: Wholesale water closing RCV at 31 March 2020 (from PR14 FD) | F85: =F_Inputs!N31 -> 0 | G85: £m | H85: 2012/13 FYA
A86: =F_Inputs!B32 -> C00572_L021 | E86: Water ~ Total Adjustment RCV carry forward to PR19 | F86: =F_Inputs!P32 -> -24.53766372 | G86: £m | H86: 2012/13 FYA
A87: =F_Inputs!B33 -> APP25001 | E87: Water ~ CIS RCV inflation correction | F87: =F_Inputs!P33 -> -50.61785831 | G87: £m | H87: 2012/13 FYA
A88: =F_Inputs!B34 -> C_APP27029_PD002 | E88: Net performance payment / (penalty) applied to RCV for end of period ODI adjustments ~ Water resources | F88: =F_Inputs!R34 -> 0 | G88: £m | H88: 2012/13 FYA
A89: =F_Inputs!B35 -> C_APP27030_PD002 | E89: Net performance payment / (penalty) applied to RCV for end of period ODI adjustments ~ Water network plus | F89: =F_Inputs!R35 -> 0 | G89: £m | H89: 2012/13 FYA
A90: =F_Inputs!B36 -> C_WS15025_PR19PD006 | E90: Water: RCV adjustment from totex menu model | F90: =F_Inputs!N36 -> -6.709976904 | G90: £m | H90: 2012/13 FYA
A91: =F_Inputs!B37 -> APP8009W | E91: Water ~ Other adjustment to wholesale RCV | F91: =F_Inputs!N37 -> 0 | G91: £m | H91: 2017/18 FYE
A92: =F_Inputs!B38 -> C_A7010W_PR19PD003 | E92: Water ~ NPV effect of 50% of proceeds from disposals of interest in land | F92: =F_Inputs!N38 -> -0.8138892356 | G92: £m | H92: 2017/18 FYA
E94: % of RCV to index by RPI - water services | F94: 0.5 | G94: %
A96: =F_Inputs!B39 -> WS12019WR | E96: Water resources % of total wholesale water RCV ~ 31 March 2020 | F96: =F_Inputs!N39 -> 0 | G96: %
E97: Water network plus % of total wholesale water RCV ~ 31 March 2020 | F97: =1-F96 -> 1 | G97: %
A99: =F_Inputs!B40 -> APP33021WR | E99: Water resources IFRS16 RCV adjustment | F99: =F_Inputs!N40 -> 0 | G99: £m | H99: 2017/18 FYE
A100: =F_Inputs!B41 -> APP33021WNP | E100: Water network plus IFRS16 RCV adjustment | F100: =F_Inputs!N41 -> 0 | G100: £m | H100: 2017/18 FYE
B102: Wastewater services
A104: =F_Inputs!B42 -> APP8001WW | E104: Wholesale wastewater closing RCV at 31 March 2020 in 2012-13 prices (PR14 FD) | F104: =F_Inputs!N42 -> 0 | G104: £m | H104: 2012/13 FYA
A105: =F_Inputs!B43 -> C00579_L021 | E105: Wastewater ~ Total Adjustment RCV carry forward to PR19 | F105: =F_Inputs!P43 -> -2.158102757 | G105: £m | H105: 2012/13 FYA
A106: =F_Inputs!B44 -> APP25002 | E106: Wastewater ~ CIS RCV inflation correction | F106: =F_Inputs!P44 -> -64.96938355 | G106: £m | H106: 2012/13 FYA
A107: =F_Inputs!B45 -> C_APP27031_PD002 | E107: Net performance payment / (penalty) applied to RCV for end of period ODI adjustments ~ Wastewater network plus | F107: =F_Inputs!R45 -> 0 | G107: £m | H107: 2012/13 FYA
A108: =F_Inputs!B46 -> C_WWS15020_PR19PD006 | E108: Wastewater: RCV adjustment from totex menu model | F108: =F_Inputs!N46 -> -131.3036848 | G108: £m | H108: 2012/13 FYA
A109: =F_Inputs!B47 -> APP8009WW | E109: Wastewater ~ Other adjustment to wholesale RCV | F109: =F_Inputs!N47 -> 0 | G109: £m | H109: 2017/18 FYE
A110: =F_Inputs!B48 -> C_A7010WW_PR19PD003 | E110: Wastewater ~ NPV effect of 50% of proceeds from disposals of interest in land | F110: =F_Inputs!N48 -> -3.973698382 | G110: £m | H110: 2017/18 FYA
E112: % of RCV to index by RPI - wastewater services | F112: 0.5 | G112: %
A114: =F_Inputs!B49 -> WWS12016BIO | E114: Bioresources RCV (prior to midnight adjustments) 31 March 2020 | F114: =F_Inputs!N49 -> 0 | G114: £m | H114: 2017/18 FYE
A116: =F_Inputs!B50 -> APP33021BIO | E116: Bioresources IFRS16 RCV adjustment | F116: =F_Inputs!N50 -> 0 | G116: £m | H116: 2017/18 FYE
A117: =F_Inputs!B51 -> APP33021WWNP | E117: Wastewater network plus IFRS16 RCV adjustment | F117: =F_Inputs!N51 -> 0 | G117: £m | H117: 2017/18 FYE
B119: Dummy RCV
A121: =F_Inputs!B52 -> RCV1011DMMY | E121: Dummy RCV (prior to midnight adjustments) 31 March 2020 | F121: =F_Inputs!N52 -> 0 | G121: £m | H121: 2017/18 FYE
A122: =F_Inputs!B53 -> C_APP27032_PD002 | E122: Net performance payment / (penalty) applied to RCV for end of period ODI adjustments ~ Thames Tideway | F122: =F_Inputs!R53 -> 0 | G122: £m | H122: 2012/13 FYA
A123: =F_Inputs!B55 -> APP8009DMMY | E123: Dummy: RCV adjustment from totex menu model | F123: =F_Inputs!N54 -> 0 | G123: £m | H123: 2012/13 FYA
A124: =F_Inputs!B56 -> APP33021DMMY | E124: Dummy ~ Other adjustment to wholesale RCV | F124: =F_Inputs!N55 -> 0 | G124: £m | H124: 2017/18 FYE
A125: Manual input if required | E125: Dummy: NPV effect of 100% of proceeds from disposals of interest in land | G125: £m | H125: 2017/18 FYA
E126: % of RCV to index by RPI - dummy | F126: 0.5 | G126: %
A128: =F_Inputs!B57 -> 0 | E128: Dummy IFRS16 RCV adjustment | F128: =F_Inputs!N56 -> 0 | G128: £m | H128: 2017/18 FYE
A131: D: NON CHANGEABLE MODEL TECHNICAL INPUTS
A133: C017 | E133: Months per model period | F133: 12 | G133: months
A135: C018 | E135: Months in a year | F135: 12 | G135: months
A137: C019 | E137: Days in a year | F137: 365 | G137: days
E140: [Used in formula range - Do not delete]

Sheet Time
A1: =RIGHT(CELL("FILENAME", $A$1), LEN(CELL("FILENAME", $A$1)) - SEARCH("]", CELL("FILENAME", $A$1))) -> Time
E2: =Time!E$25 -> Model period ending | J2: =Time!J$25 -> 2013-03-31 | K2: =Time!K$25 -> 2014-03-31 | L2: =Time!L$25 -> 2015-03-31 | M2: =Time!M$25 -> 2016-03-31 | N2: =Time!N$25 -> 2017-03-31 | O2: =Time!O$25 -> 2018-03-31 | P2: =Time!P$25 -> 2019-03-31 | Q2: =Time!Q$25 -> 2020-03-31 | R2: =Time!R$25 -> 2021-03-31 | S2: =Time!S$25 -> 2022-03-31 | T2: =Time!T$25 -> 2023-03-31 | U2: =Time!U$25 -> 2024-03-31
E3: =Time!E$80 -> Timeline label | J3: =Time!J$80 -> Pre-Fcst | K3: =Time!K$80 -> Pre-Fcst | L3: =Time!L$80 -> Pre-Fcst | M3: =Time!M$80 -> Pre-Fcst | N3: =Time!N$80 -> Pre-Fcst | O3: =Time!O$80 -> Pre-Fcst | P3: =Time!P$80 -> Pre-Fcst | Q3: =Time!Q$80 -> Pre-Fcst | R3: =Time!R$80 -> Forecast | S3: =Time!S$80 -> Forecast | T3: =Time!T$80 -> Forecast | U3: =Time!U$80 -> Forecast
E4: =Time!E$103 -> Financial year ending | J4: =Time!J$103 -> 2013 | K4: =Time!K$103 -> 2014 | L4: =Time!L$103 -> 2015 | M4: =Time!M$103 -> 2016 | N4: =Time!N$103 -> 2017 | O4: =Time!O$103 -> 2018 | P4: =Time!P$103 -> 2019 | Q4: =Time!Q$103 -> 2020 | R4: =Time!R$103 -> 2021 | S4: =Time!S$103 -> 2022 | T4: =Time!T$103 -> 2023 | U4: =Time!U$103 -> 2024
E5: =Time!E$10 -> Model column counter | F5: Constant | G5: Unit | H5: Total | J5: =Time!J$10 -> 1 | K5: =Time!K$10 -> 2 | L5: =Time!L$10 -> 3 | M5: =Time!M$10 -> 4 | N5: =Time!N$10 -> 5 | O5: =Time!O$10 -> 6 | P5: =Time!P$10 -> 7 | Q5: =Time!Q$10 -> 8 | R5: =Time!R$10 -> 9 | S5: =Time!S$10 -> 10 | T5: =Time!T$10 -> 11 | U5: =Time!U$10 -> 12
A7: MODEL PERIOD
B9: Model column counter
E10: Model column counter | G10: counter | J10: =I10 + 1 -> 1 | K10: 2 | L10: 3 | M10: 4 | N10: 5 | O10: 6 | P10: 7 | Q10: 8 | R10: 9 | S10: =R10 + 1 -> 10 | T10: =S10 + 1 -> 11 | U10: =T10 + 1 -> 12
E11: Model column total | F11: =MAX(J10:U10) -> 12 | G11: columns
E13: =E$10 -> Model column counter | F13: 0 | G13: counter | H13: 0 | I13: 0 | J13: 1 | K13: 2 | L13: 3 | M13: 4 | N13: 5 | O13: 6 | P13: 7 | Q13: 8 | R13: 9 | S13: 10 | T13: 11 | U13: 12
E14: 1st model column flag | G14: flag | H14: =SUM(J14:U14) -> 1 | J14: =IF(J13 = 1, 1, 0) -> 1 | K14: 0 | L14: 0 | M14: 0 | N14: 0 | O14: 0 | P14: 0 | Q14: 0 | R14: 0 | S14: =IF(S13 = 1, 1, 0) -> 0 | T14: =IF(T13 = 1, 1, 0) -> 0 | U14: =IF(U13 = 1, 1, 0) -> 0
B16: Model period beginning
E17: =Inputs!E$13 -> 1st model column start date | F17: =Inputs!F$13 -> 2012-04-01 | G17: =Inputs!G$13 -> date
E18: =Inputs!E$133 -> Months per model period | F18: =Inputs!F$133 -> 12 | G18: =Inputs!G$133 -> months
E19: =E$14 -> 1st model column flag | F19: 0 | G19: flag | H19: 1 | I19: 0 | J19: 1 | K19: 0 | L19: 0 | M19: 0 | N19: 0 | O19: 0 | P19: 0 | Q19: 0 | R19: 0 | S19: 0 | T19: 0 | U19: 0
E20: Model period beginning | G20: date | J20: =IF(J19 = 1, $F17, DATE(YEAR(I20), MONTH(I20) + $F18, DAY(1))) -> 2012-04-01 | K20: 2013-04-01 | L20: 2014-04-01 | M20: 2015-04-01 | N20: 2016-04-01 | O20: 2017-04-01 | P20: 2018-04-01 | Q20: 2019-04-01 | R20: 2020-04-01 | S20: =IF(S19 = 1, $F17, DATE(YEAR(R20), MONTH(R20) + $F18, DAY(1))) -> 2021-04-01 | T20: =IF(T19 = 1, $F17, DATE(YEAR(S20), MONTH(S20) + $F18, DAY(1))) -> 2022-04-01 | U20: =IF(U19 = 1, $F17, DATE(YEAR(T20), MONTH(T20) + $F18, DAY(1))) -> 2023-04-01
B22: Model period ending
E23: =Inputs!E$133 -> Months per model period | F23: =Inputs!F$133 -> 12 | G23: =Inputs!G$133 -> months
E24: =E$20 -> Model period beginning | F24: 00:00:00 | G24: date | H24: 00:00:00 | I24: 00:00:00 | J24: 2012-04-01 | K24: 2013-04-01 | L24: 2014-04-01 | M24: 2015-04-01 | N24: 2016-04-01 | O24: 2017-04-01 | P24: 2018-04-01 | Q24: 2019-04-01 | R24: 2020-04-01 | S24: 2021-04-01 | T24: 2022-04-01 | U24: 2023-04-01
E25: Model period ending | G25: date | J25: =DATE(YEAR(J24), MONTH(J24) + $F23, DAY(J24) - 1) -> 2013-03-31 | K25: 2014-03-31 | L25: 2015-03-31 | M25: 2016-03-31 | N25: 2017-03-31 | O25: 2018-03-31 | P25: 2019-03-31 | Q25: 2020-03-31 | R25: 2021-03-31 | S25: =DATE(YEAR(S24), MONTH(S24) + $F23, DAY(S24) - 1) -> 2022-03-31 | T25: =DATE(YEAR(T24), MONTH(T24) + $F23, DAY(T24) - 1) -> 2023-03-31 | U25: =DATE(YEAR(U24), MONTH(U24) + $F23, DAY(U24) - 1) -> 2024-03-31
A28: FORECAST PERIOD
B30: Forecast start period flag
E31: =Inputs!E$26 -> Forecast start date | F31: =Inputs!F$26 -> 2020-04-01 | G31: =Inputs!G$26 -> date
E32: =E$20 -> Model period beginning | F32: 00:00:00 | G32: date | H32: 00:00:00 | I32: 00:00:00 | J32: 2012-04-01 | K32: 2013-04-01 | L32: 2014-04-01 | M32: 2015-04-01 | N32: 2016-04-01 | O32: 2017-04-01 | P32: 2018-04-01 | Q32: 2019-04-01 | R32: 2020-04-01 | S32: 2021-04-01 | T32: 2022-04-01 | U32: 2023-04-01
E33: =E$25 -> Model period ending | F33: 00:00:00 | G33: date | H33: 00:00:00 | I33: 00:00:00 | J33: 2013-03-31 | K33: 2014-03-31 | L33: 2015-03-31 | M33: 2016-03-31 | N33: 2017-03-31 | O33: 2018-03-31 | P33: 2019-03-31 | Q33: 2020-03-31 | R33: 2021-03-31 | S33: 2022-03-31 | T33: 2023-03-31 | U33: 2024-03-31
E34: Forecast start period flag | G34: flag | H34: =SUM(J34:U34) -> 1 | J34: =IF(AND($F31 >= J32, $F31 <= J33), 1, 0) -> 0 | K34: =IF(AND($F31 >= K32, $F31 <= K33), 1, 0) -> 0 | L34: 0 | M34: 0 | N34: 0 | O34: 0 | P34: 0 | Q34: 0 | R34: 1 | S34: =IF(AND($F31 >= S32, $F31 <= S33), 1, 0) -> 0 | T34: =IF(AND($F31 >= T32, $F31 <= T33), 1, 0) -> 0 | U34: =IF(AND($F31 >= U32, $F31 <= U33), 1, 0) -> 0
B36: Forecast end period flag
E37: =Inputs!E$26 -> Forecast start date | F37: =Inputs!F$26 -> 2020-04-01 | G37: =Inputs!G$26 -> date
E38: =Inputs!E$27 -> Forecast duration | F38: =Inputs!F$27 -> 5 | G38: =Inputs!G$27 -> years
E39: Forecast end date | F39: =DATE(YEAR(F37) + F38, MONTH(F37), DAY(F37) - 1) -> 2025-03-31 | G39: date
E41: =E$39 -> Forecast end date | F41: =F$39 -> 2025-03-31 | G41: =G$39 -> date
E42: =E$20 -> Model period beginning | F42: 00:00:00 | G42: date | H42: 00:00:00 | I42: 00:00:00 | J42: 2012-04-01 | K42: 2013-04-01 | L42: 2014-04-01 | M42: 2015-04-01 | N42: 2016-04-01 | O42: 2017-04-01 | P42: 2018-04-01 | Q42: 2019-04-01 | R42: 2020-04-01 | S42: 2021-04-01 | T42: 2022-04-01 | U42: 2023-04-01
E43: =E$25 -> Model period ending | F43: 00:00:00 | G43: date | H43: 00:00:00 | I43: 00:00:00 | J43: 2013-03-31 | K43: 2014-03-31 | L43: 2015-03-31 | M43: 2016-03-31 | N43: 2017-03-31 | O43: 2018-03-31 | P43: 2019-03-31 | Q43: 2020-03-31 | R43: 2021-03-31 | S43: 2022-03-31 | T43: 2023-03-31 | U43: 2024-03-31
E44: Forecast end period flag | G44: flag | H44: =SUM(J44:U44) -> 0 | J44: =IF(AND($F41 >= J42, $F41 <= J43), 1, 0) -> 0 | K44: 0 | L44: 0 | M44: 0 | N44: 0 | O44: 0 | P44: 0 | Q44: 0 | R44: 0 | S44: 0 | T44: 0 | U44: 0
B46: Forecast period flag
E47: =E$34 -> Forecast start period flag | F47: =F$34 -> 0 | G47: flag | H47: 1 | I47: 0 | J47: 0 | K47: 0 | L47: 0 | M47: 0 | N47: 0 | O47: 0 | P47: 0 | Q47: 0 | R47: 1 | S47: 0 | T47: 0 | U47: 0
E48: =E$44 -> Forecast end period flag | F48: =F$44 -> 0 | G48: flag | H48: 0 | I48: 0 | J48: 0 | K48: 0 | L48: 0 | M48: 0 | N48: 0 | O48: 0 | P48: 0 | Q48: 0 | R48: 0 | S48: 0 | T48: 0 | U48: 0
E49: Forecast period flag | G49: flag | H49: =SUM(J49:U49) -> 4 | J49: =J47 + I49 - I48 -> 0 | K49: =K47 + J49 - J48 -> 0 | L49: 0 | M49: 0 | N49: 0 | O49: 0 | P49: 0 | Q49: 0 | R49: 1 | S49: =S47 + R49 - R48 -> 1 | T49: =T47 + S49 - S48 -> 1 | U49: =U47 + T49 - T48 -> 1
E50: Total number of forecast periods | F50: =SUM(J49:U49) -> 4 | G50: periods
B52: Pre-forecast period flag
E53: =E$14 -> 1st model column flag | F53: =F$14 -> 0 | G53: flag | H53: 1 | I53: 0 | J53: 1 | K53: 0 | L53: 0 | M53: 0 | N53: 0 | O53: 0 | P53: 0 | Q53: 0 | R53: 0 | S53: 0 | T53: 0 | U53: 0
E54: =E$34 -> Forecast start period flag | F54: =F$34 -> 0 | G54: flag | H54: 1 | I54: 0 | J54: 0 | K54: 0 | L54: 0 | M54: 0 | N54: 0 | O54: 0 | P54: 0 | Q54: 0 | R54: 1 | S54: 0 | T54: 0 | U54: 0
E55: Pre-forecast period flag | G55: flag | H55: =SUM(J55:U55) -> 8 | J55: =J53 + I55 - J54 -> 1 | K55: =K53 + J55 - K54 -> 1 | L55: 1 | M55: 1 | N55: 1 | O55: 1 | P55: 1 | Q55: 1 | R55: 0 | S55: =S53 + R55 - S54 -> 0 | T55: =T53 + S55 - T54 -> 0 | U55: =U53 + T55 - U54 -> 0
E56: Pre-forecast period flag - total | F56: =SUM(J55:U55) -> 8 | G56: periods
B58: First post-forecast period flag
E59: =E$44 -> Forecast end period flag | F59: =F$44 -> 0 | G59: flag | H59: 0 | I59: 0 | J59: 0 | K59: 0 | L59: 0 | M59: 0 | N59: 0 | O59: 0 | P59: 0 | Q59: 0 | R59: 0 | S59: 0 | T59: 0 | U59: 0
E60: First post-forecast period flag | G60: flag | H60: =SUM(J60:U60) -> 0 | J60: =I59 -> 0 | K60: =J59 -> 0 | L60: 0 | M60: 0 | N60: 0 | O60: 0 | P60: 0 | Q60: 0 | R60: 0 | S60: =R59 -> 0 | T60: =S59 -> 0 | U60: =T59 -> 0
B62: Post-forecast period flag
E63: =E$60 -> First post-forecast period flag | F63: 0 | G63: flag | H63: 0 | I63: 0 | J63: 0 | K63: 0 | L63: 0 | M63: 0 | N63: 0 | O63: 0 | P63: 0 | Q63: 0 | R63: 0 | S63: 0 | T63: 0 | U63: 0
E64: Post-forecast period flag | G64: flag | H64: =SUM(J64:U64) -> 0 | J64: =J63 + I64 -> 0 | K64: =K63 + J64 -> 0 | L64: 0 | M64: 0 | N64: 0 | O64: 0 | P64: 0 | Q64: 0 | R64: 0 | S64: =S63 + R64 -> 0 | T64: =T63 + S64 -> 0 | U64: =U63 + T64 -> 0
E65: Post-forecast period - total | F65: =SUM(J64:U64) -> 0 | G65: periods
A67: MODEL TIMELINE
B70: Timeline label
E71: =E$14 -> 1st model column flag | F71: 0 | G71: flag | H71: 1 | I71: 0 | J71: 1 | K71: 0 | L71: 0 | M71: 0 | N71: 0 | O71: 0 | P71: 0 | Q71: 0 | R71: 0 | S71: 0 | T71: 0 | U71: 0
E72: =E$34 -> Forecast start period flag | F72: =F$34 -> 0 | G72: flag | H72: 1 | I72: 0 | J72: 0 | K72: 0 | L72: 0 | M72: 0 | N72: 0 | O72: 0 | P72: 0 | Q72: 0 | R72: 1 | S72: 0 | T72: 0 | U72: 0
E73: =E$60 -> First post-forecast period flag | F73: 0 | G73: flag | H73: 0 | I73: 0 | J73: 0 | K73: 0 | L73: 0 | M73: 0 | N73: 0 | O73: 0 | P73: 0 | Q73: 0 | R73: 0 | S73: 0 | T73: 0 | U73: 0
E74: Timeline label counter | G74: counter | J74: =I74 + SUM(J71:J73) -> 1 | K74: 1 | L74: 1 | M74: 1 | N74: 1 | O74: 1 | P74: 1 | Q74: 1 | R74: 2 | S74: =R74 + SUM(S71:S73) -> 2 | T74: =S74 + SUM(T71:T73) -> 2 | U74: =T74 + SUM(U71:U73) -> 2
E76: =Inputs!E$20 -> Pre - forecast period | F76: =Inputs!F$20 -> Pre-Fcst | G76: =Inputs!G$20 -> label
E77: =Inputs!E$21 -> Forecast period | F77: =Inputs!F$21 -> Forecast | G77: =Inputs!G$21 -> label
E78: =Inputs!E$22 -> Post - forecast period | F78: =Inputs!F$22 -> Post-Fcst | G78: =Inputs!G$22 -> label
E79: =E$74 -> Timeline label counter | F79: 0 | G79: counter | H79: 0 | I79: 0 | J79: 1 | K79: 1 | L79: 1 | M79: 1 | N79: 1 | O79: 1 | P79: 1 | Q79: 1 | R79: 2 | S79: 2 | T79: 2 | U79: 2
E80: Timeline label | G80: label | J80: =INDEX($F76:$F78, J79) -> Pre-Fcst | K80: Pre-Fcst | L80: Pre-Fcst | M80: Pre-Fcst | N80: Pre-Fcst | O80: Pre-Fcst | P80: Pre-Fcst | Q80: Pre-Fcst | R80: Forecast | S80: =INDEX($F76:$F78, S79) -> Forecast | T80: =INDEX($F76:$F78, T79) -> Forecast | U80: =INDEX($F76:$F78, U79) -> Forecast
B82: Modelling period check
E83: =E$55 -> Pre-forecast period flag | F83: =F$55 -> 0 | G83: flag | H83: 8 | I83: 0 | J83: 1 | K83: 1 | L83: 1 | M83: 1 | N83: 1 | O83: 1 | P83: 1 | Q83: 1 | R83: 0 | S83: 0 | T83: 0 | U83: 0
E84: =E$49 -> Forecast period flag | F84: =F$49 -> 0 | G84: flag | H84: 4 | I84: 0 | J84: 0 | K84: 0 | L84: 0 | M84: 0 | N84: 0 | O84: 0 | P84: 0 | Q84: 0 | R84: 1 | S84: 1 | T84: 1 | U84: 1
E85: =E$64 -> Post-forecast period flag | F85: 0 | G85: flag | H85: 0 | I85: 0 | J85: 0 | K85: 0 | L85: 0 | M85: 0 | N85: 0 | O85: 0 | P85: 0 | Q85: 0 | R85: 0 | S85: 0 | T85: 0 | U85: 0
E86: No. of overlapping in flags | G86: # | H86: =SUM(J86:U86) -> 0 | J86: =MAX(0, SUM(J83:J85) - 1) -> 0 | K86: 0 | L86: 0 | M86: 0 | N86: 0 | O86: 0 | P86: 0 | Q86: 0 | R86: 0 | S86: =MAX(0, SUM(S83:S85) - 1) -> 0 | T86: =MAX(0, SUM(T83:T85) - 1) -> 0 | U86: =MAX(0, SUM(U83:U85) - 1) -> 0
E87: Overlapping in periods - total | F87: =SUM(J86:U86) -> 0 | G87: periods
E89: =E$11 -> Model column total | F89: =F$11 -> 12 | G89: =G$11 -> columns
E90: =E$87 -> Overlapping in periods - total | F90: =F$87 -> 0 | G90: =G$87 -> periods
E91: =E$56 -> Pre-forecast period flag - total | F91: =F$56 -> 8 | G91: =G$56 -> periods
E92: =E$50 -> Total number of forecast periods | F92: =F$50 -> 4 | G92: =G$50 -> periods
E93: =E$65 -> Post-forecast period - total | F93: =F$65 -> 0 | G93: =G$65 -> periods
E94: Modelling period check | F94: =IF(SUM(F89:F90) - SUM(F91:F93) <> 0, 1, 0) -> 0 | G94: check
A97: FINANCIAL YEAR
E99: =Inputs!E$16 -> First modelling column financial year# | F99: =Inputs!F$16 -> 2013 | G99: =Inputs!G$16 -> year #
E100: =Inputs!E$17 -> Financial year end month number | F100: =Inputs!F$17 -> 3 | G100: =Inputs!G$17 -> month #
E101: =E$25 -> Model period ending | F101: 00:00:00 | G101: date | H101: 00:00:00 | I101: 00:00:00 | J101: 2013-03-31 | K101: 2014-03-31 | L101: 2015-03-31 | M101: 2016-03-31 | N101: 2017-03-31 | O101: 2018-03-31 | P101: 2019-03-31 | Q101: 2020-03-31 | R101: 2021-03-31 | S101: 2022-03-31 | T101: 2023-03-31 | U101: 2024-03-31
E102: =E$14 -> 1st model column flag | F102: 0 | G102: flag | H102: 1 | I102: 0 | J102: 1 | K102: 0 | L102: 0 | M102: 0 | N102: 0 | O102: 0 | P102: 0 | Q102: 0 | R102: 0 | S102: 0 | T102: 0 | U102: 0
E103: Financial year ending | G103: year # | J103: =IF(J102 = 1, $F99, IF(J101 > (DATE(I103, $F100 + 1, 1) - 1), I103 + 1, I103)) -> 2013 | K103: 2014 | L103: 2015 | M103: 2016 | N103: 2017 | O103: 2018 | P103: 2019 | Q103: 2020 | R103: 2021 | S103: =IF(S102 = 1, $F99, IF(S101 > (DATE(R103, $F100 + 1, 1) - 1), R103 + 1, R103)) -> 2022 | T103: =IF(T102 = 1, $F99, IF(T101 > (DATE(S103, $F100 + 1, 1) - 1), S103 + 1, S103)) -> 2023 | U103: =IF(U102 = 1, $F99, IF(U101 > (DATE(T103, $F100 + 1, 1) - 1), T103 + 1, T103)) -> 2024

Sheet Indexation
A1: =RIGHT(CELL("filename", $A$1), LEN(CELL("filename", $A$1)) - SEARCH("]", CELL("filename", $A$1))) -> Indexation
E2: =Time!E$25 -> Model period ending | J2: =Time!J$25 -> 2013-03-31 | K2: =Time!K$25 -> 2014-03-31 | L2: =Time!L$25 -> 2015-03-31 | M2: =Time!M$25 -> 2016-03-31 | N2: =Time!N$25 -> 2017-03-31 | O2: =Time!O$25 -> 2018-03-31 | P2: =Time!P$25 -> 2019-03-31 | Q2: =Time!Q$25 -> 2020-03-31 | R2: =Time!R$25 -> 2021-03-31 | S2: =Time!S$25 -> 2022-03-31 | T2: =Time!T$25 -> 2023-03-31 | U2: =Time!U$25 -> 2024-03-31
E3: =Time!E$80 -> Timeline label | J3: =Time!J$80 -> Pre-Fcst | K3: =Time!K$80 -> Pre-Fcst | L3: =Time!L$80 -> Pre-Fcst | M3: =Time!M$80 -> Pre-Fcst | N3: =Time!N$80 -> Pre-Fcst | O3: =Time!O$80 -> Pre-Fcst | P3: =Time!P$80 -> Pre-Fcst | Q3: =Time!Q$80 -> Pre-Fcst | R3: =Time!R$80 -> Forecast | S3: =Time!S$80 -> Forecast | T3: =Time!T$80 -> Forecast | U3: =Time!U$80 -> Forecast
E4: =Time!E$103 -> Financial year ending | J4: =Time!J$103 -> 2013 | K4: =Time!K$103 -> 2014 | L4: =Time!L$103 -> 2015 | M4: =Time!M$103 -> 2016 | N4: =Time!N$103 -> 2017 | O4: =Time!O$103 -> 2018 | P4: =Time!P$103 -> 2019 | Q4: =Time!Q$103 -> 2020 | R4: =Time!R$103 -> 2021 | S4: =Time!S$103 -> 2022 | T4: =Time!T$103 -> 2023 | U4: =Time!U$103 -> 2024
E5: =Time!E$10 -> Model column counter | F5: Constant | G5: Unit | H5: Total | J5: =Time!J$10 -> 1 | K5: =Time!K$10 -> 2 | L5: =Time!L$10 -> 3 | M5: =Time!M$10 -> 4 | N5: =Time!N$10 -> 5 | O5: =Time!O$10 -> 6 | P5: =Time!P$10 -> 7 | Q5: =Time!Q$10 -> 8 | R5: =Time!R$10 -> 9 | S5: =Time!S$10 -> 10 | T5: =Time!T$10 -> 11 | U5: =Time!U$10 -> 12
A7: CPIH INDEXATION
B9: CPIH: Index value series
E10: =Inputs!E$35 -> Consumer Price Index for April | F10: =Inputs!F$35 -> 0 | G10: =Inputs!G$35 -> index | H10: =Inputs!H$35 -> 0 | I10: =Inputs!I$35 -> 0 | J10: =Inputs!J$35 -> 95.9 | K10: =Inputs!K$35 -> 98 | L10: =Inputs!L$35 -> 99.6 | M10: =Inputs!M$35 -> 99.9 | N10: =Inputs!N$35 -> 100.6 | O10: =Inputs!O$35 -> 103.2 | P10: =Inputs!P$35 -> 105.6768 | Q10: =Inputs!Q$35 -> 107.8960128 | R10: =Inputs!R$35 -> 0 | S10: =Inputs!S$35 -> 0 | T10: =Inputs!T$35 -> 0 | U10: =Inputs!U$35 -> 0
E11: =Inputs!E$36 -> Consumer Price Index for May | F11: =Inputs!F$36 -> 0 | G11: =Inputs!G$36 -> index | H11: =Inputs!H$36 -> 0 | I11: =Inputs!I$36 -> 0 | J11: =Inputs!J$36 -> 95.9 | K11: =Inputs!K$36 -> 98.2 | L11: =Inputs!L$36 -> 99.6 | M11: =Inputs!M$36 -> 100.1 | N11: =Inputs!N$36 -> 100.8 | O11: =Inputs!O$36 -> 103.5 | P11: =Inputs!P$36 -> 105.984 | Q11: =Inputs!Q$36 -> 108.209664 | R11: =Inputs!R$36 -> 0 | S11: =Inputs!S$36 -> 0 | T11: =Inputs!T$36 -> 0 | U11: =Inputs!U$36 -> 0
E12: =Inputs!E$37 -> Consumer Price Index for June | F12: =Inputs!F$37 -> 0 | G12: =Inputs!G$37 -> index | H12: =Inputs!H$37 -> 0 | I12: =Inputs!I$37 -> 0 | J12: =Inputs!J$37 -> 95.6 | K12: =Inputs!K$37 -> 98 | L12: =Inputs!L$37 -> 99.8 | M12: =Inputs!M$37 -> 100.1 | N12: =Inputs!N$37 -> 101 | O12: =Inputs!O$37 -> 103.5 | P12: =Inputs!P$37 -> 105.984 | Q12: =Inputs!Q$37 -> 108.209664 | R12: =Inputs!R$37 -> 0 | S12: =Inputs!S$37 -> 0 | T12: =Inputs!T$37 -> 0 | U12: =Inputs!U$37 -> 0
E13: =Inputs!E$38 -> Consumer Price Index for July | F13: =Inputs!F$38 -> 0 | G13: =Inputs!G$38 -> index | H13: =Inputs!H$38 -> 0 | I13: =Inputs!I$38 -> 0 | J13: =Inputs!J$38 -> 95.7 | K13: =Inputs!K$38 -> 98 | L13: =Inputs!L$38 -> 99.6 | M13: =Inputs!M$38 -> 100 | N13: =Inputs!N$38 -> 100.9 | O13: =Inputs!O$38 -> 103.5 | P13: =Inputs!P$38 -> 105.984 | Q13: =Inputs!Q$38 -> 108.209664 | R13: =Inputs!R$38 -> 0 | S13: =Inputs!S$38 -> 0 | T13: =Inputs!T$38 -> 0 | U13: =Inputs!U$38 -> 0
E14: =Inputs!E$39 -> Consumer Price Index for August | F14: =Inputs!F$39 -> 0 | G14: =Inputs!G$39 -> index | H14: =Inputs!H$39 -> 0 | I14: =Inputs!I$39 -> 0 | J14: =Inputs!J$39 -> 96.1 | K14: =Inputs!K$39 -> 98.4 | L14: =Inputs!L$39 -> 99.9 | M14: =Inputs!M$39 -> 100.3 | N14: =Inputs!N$39 -> 101.2 | O14: =Inputs!O$39 -> 104 | P14: =Inputs!P$39 -> 106.496 | Q14: =Inputs!Q$39 -> 108.732416 | R14: =Inputs!R$39 -> 0 | S14: =Inputs!S$39 -> 0 | T14: =Inputs!T$39 -> 0 | U14: =Inputs!U$39 -> 0
E15: =Inputs!E$40 -> Consumer Price Index for September | F15: =Inputs!F$40 -> 0 | G15: =Inputs!G$40 -> index | H15: =Inputs!H$40 -> 0 | I15: =Inputs!I$40 -> 0 | J15: =Inputs!J$40 -> 96.4 | K15: =Inputs!K$40 -> 98.7 | L15: =Inputs!L$40 -> 100 | M15: =Inputs!M$40 -> 100.2 | N15: =Inputs!N$40 -> 101.5 | O15: =Inputs!O$40 -> 104.3 | P15: =Inputs!P$40 -> 106.8032 | Q15: =Inputs!Q$40 -> 109.0460672 | R15: =Inputs!R$40 -> 0 | S15: =Inputs!S$40 -> 0 | T15: =Inputs!T$40 -> 0 | U15: =Inputs!U$40 -> 0
E16: =Inputs!E$41 -> Consumer Price Index for October | F16: =Inputs!F$41 -> 0 | G16: =Inputs!G$41 -> index | H16: =Inputs!H$41 -> 0 | I16: =Inputs!I$41 -> 0 | J16: =Inputs!J$41 -> 96.8 | K16: =Inputs!K$41 -> 98.8 | L16: =Inputs!L$41 -> 100.1 | M16: =Inputs!M$41 -> 100.3 | N16: =Inputs!N$41 -> 101.6 | O16: =Inputs!O$41 -> 104.4 | P16: =Inputs!P$41 -> 106.9056 | Q16: =Inputs!Q$41 -> 109.1506176 | R16: =Inputs!R$41 -> 0 | S16: =Inputs!S$41 -> 0 | T16: =Inputs!T$41 -> 0 | U16: =Inputs!U$41 -> 0
E17: =Inputs!E$42 -> Consumer Price Index for November | F17: =Inputs!F$42 -> 0 | G17: =Inputs!G$42 -> index | H17: =Inputs!H$42 -> 0 | I17: =Inputs!I$42 -> 0 | J17: =Inputs!J$42 -> 97 | K17: =Inputs!K$42 -> 98.8 | L17: =Inputs!L$42 -> 99.9 | M17: =Inputs!M$42 -> 100.3 | N17: =Inputs!N$42 -> 101.8 | O17: =Inputs!O$42 -> 104.7 | P17: =Inputs!P$42 -> 107.2128 | Q17: =Inputs!Q$42 -> 109.4642688 | R17: =Inputs!R$42 -> 0 | S17: =Inputs!S$42 -> 0 | T17: =Inputs!T$42 -> 0 | U17: =Inputs!U$42 -> 0
E18: =Inputs!E$43 -> Consumer Price Index for December | F18: =Inputs!F$43 -> 0 | G18: =Inputs!G$43 -> index | H18: =Inputs!H$43 -> 0 | I18: =Inputs!I$43 -> 0 | J18: =Inputs!J$43 -> 97.3 | K18: =Inputs!K$43 -> 99.2 | L18: =Inputs!L$43 -> 99.9 | M18: =Inputs!M$43 -> 100.4 | N18: =Inputs!N$43 -> 102.2 | O18: =Inputs!O$43 -> 105 | P18: =Inputs!P$43 -> 107.52 | Q18: =Inputs!Q$43 -> 109.77792 | R18: =Inputs!R$43 -> 0 | S18: =Inputs!S$43 -> 0 | T18: =Inputs!T$43 -> 0 | U18: =Inputs!U$43 -> 0
E19: =Inputs!E$44 -> Consumer Price Index for January | F19: =Inputs!F$44 -> 0 | G19: =Inputs!G$44 -> index | H19: =Inputs!H$44 -> 0 | I19: =Inputs!I$44 -> 0 | J19: =Inputs!J$44 -> 97 | K19: =Inputs!K$44 -> 98.7 | L19: =Inputs!L$44 -> 99.2 | M19: =Inputs!M$44 -> 99.9 | N19: =Inputs!N$44 -> 101.8 | O19: =Inputs!O$44 -> 104.5 | P19: =Inputs!P$44 -> 107.008 | Q19: =Inputs!Q$44 -> 109.255168 | R19: =Inputs!R$44 -> 0 | S19: =Inputs!S$44 -> 0 | T19: =Inputs!T$44 -> 0 | U19: =Inputs!U$44 -> 0
E20: =Inputs!E$45 -> Consumer Price Index for February | F20: =Inputs!F$45 -> 0 | G20: =Inputs!G$45 -> index | H20: =Inputs!H$45 -> 0 | I20: =Inputs!I$45 -> 0 | J20: =Inputs!J$45 -> 97.5 | K20: =Inputs!K$45 -> 99.1 | L20: =Inputs!L$45 -> 99.5 | M20: =Inputs!M$45 -> 100.1 | N20: =Inputs!N$45 -> 102.4 | O20: =Inputs!O$45 -> 104.9 | P20: =Inputs!P$45 -> 107.4176 | Q20: =Inputs!Q$45 -> 109.6733696 | R20: =Inputs!R$45 -> 0 | S20: =Inputs!S$45 -> 0 | T20: =Inputs!T$45 -> 0 | U20: =Inputs!U$45 -> 0
E21: =Inputs!E$46 -> Consumer Price Index for March | F21: =Inputs!F$46 -> 0 | G21: =Inputs!G$46 -> index | H21: =Inputs!H$46 -> 0 | I21: =Inputs!I$46 -> 0 | J21: =Inputs!J$46 -> 97.8 | K21: =Inputs!K$46 -> 99.3 | L21: =Inputs!L$46 -> 99.6 | M21: =Inputs!M$46 -> 100.4 | N21: =Inputs!N$46 -> 102.7 | O21: =Inputs!O$46 -> 105.1 | P21: =Inputs!P$46 -> 107.6224 | Q21: =Inputs!Q$46 -> 109.8824704 | R21: =Inputs!R$46 -> 0 | S21: =Inputs!S$46 -> 0 | T21: =Inputs!T$46 -> 0 | U21: =Inputs!U$46 -> 0
E23: =Inputs!E$48 -> CPIH: Assumed percentage increase for unpopulated monthly values | F23: =Inputs!F$48 -> 0 | G23: =Inputs!G$48 -> % | H23: =Inputs!H$48 -> 0 | I23: =Inputs!I$48 -> 0 | J23: =Inputs!J$48 -> 0 | K23: =Inputs!K$48 -> 0 | L23: =Inputs!L$48 -> 0 | M23: =Inputs!M$48 -> 0 | N23: =Inputs!N$48 -> 0 | O23: =Inputs!O$48 -> 0 | P23: =Inputs!P$48 -> 0 | Q23: =Inputs!Q$48 -> 0 | R23: =Inputs!R$48 -> 0 | S23: =Inputs!S$48 -> 0 | T23: =Inputs!T$48 -> 0 | U23: =Inputs!U$48 -> 0
E25: CPIH: April - index | G25: index | J25: =IF(J10 > 0, J10, I25 * (1 + J$23)) -> 95.9 | K25: =IF(K10 > 0, K10, J25 * (1 + K$23)) -> 98 | L25: 99.6 | M25: 99.9 | N25: 100.6 | O25: 103.2 | P25: 105.6768 | Q25: 107.8960128 | R25: 107.8960128 | S25: 107.8960128 | T25: 107.8960128 | U25: 107.8960128
E26: CPIH: May - index | G26: index | J26: =IF(J11 > 0, J11, I26 * (1 + J$23)) -> 95.9 | K26: 98.2 | L26: 99.6 | M26: 100.1 | N26: 100.8 | O26: 103.5 | P26: 105.984 | Q26: 108.209664 | R26: 108.209664 | S26: 108.209664 | T26: 108.209664 | U26: 108.209664
E27: CPIH: June - index | G27: index | J27: 95.6 | K27: 98 | L27: 99.8 | M27: 100.1 | N27: 101 | O27: 103.5 | P27: 105.984 | Q27: 108.209664 | R27: 108.209664 | S27: 108.209664 | T27: 108.209664 | U27: 108.209664
E28: CPIH: July - index | G28: index | J28: 95.7 | K28: 98 | L28: 99.6 | M28: 100 | N28: 100.9 | O28: 103.5 | P28: 105.984 | Q28: 108.209664 | R28: 108.209664 | S28: 108.209664 | T28: 108.209664 | U28: 108.209664
E29: CPIH: August - index | G29: index | J29: 96.1 | K29: 98.4 | L29: 99.9 | M29: 100.3 | N29: 101.2 | O29: 104 | P29: 106.496 | Q29: 108.732416 | R29: 108.732416 | S29: 108.732416 | T29: 108.732416 | U29: 108.732416
E30: CPIH: September- index | G30: index | J30: 96.4 | K30: 98.7 | L30: 100 | M30: 100.2 | N30: 101.5 | O30: 104.3 | P30: 106.8032 | Q30: 109.0460672 | R30: 109.0460672 | S30: 109.0460672 | T30: 109.0460672 | U30: 109.0460672
E31: CPIH: October - index | G31: index | J31: 96.8 | K31: 98.8 | L31: 100.1 | M31: 100.3 | N31: 101.6 | O31: 104.4 | P31: 106.9056 | Q31: 109.1506176 | R31: 109.1506176 | S31: 109.1506176 | T31: 109.1506176 | U31: 109.1506176
E32: CPIH: November - index | G32: index | J32: 97 | K32: 98.8 | L32: 99.9 | M32: 100.3 | N32: 101.8 | O32: 104.7 | P32: 107.2128 | Q32: 109.4642688 | R32: 109.4642688 | S32: 109.4642688 | T32: 109.4642688 | U32: 109.4642688
E33: CPIH: December - index | G33: index | J33: 97.3 | K33: 99.2 | L33: 99.9 | M33: 100.4 | N33: 102.2 | O33: 105 | P33: 107.52 | Q33: 109.77792 | R33: 109.77792 | S33: 109.77792 | T33: 109.77792 | U33: 109.77792
E34: CPIH: January - index | G34: index | J34: 97 | K34: 98.7 | L34: 99.2 | M34: 99.9 | N34: 101.8 | O34: 104.5 | P34: 107.008 | Q34: 109.255168 | R34: 109.255168 | S34: 109.255168 | T34: 109.255168 | U34: 109.255168
E35: CPIH: February - index | G35: index | J35: 97.5 | K35: 99.1 | L35: 99.5 | M35: 100.1 | N35: 102.4 | O35: 104.9 | P35: 107.4176 | Q35: 109.6733696 | R35: 109.6733696 | S35: 109.6733696 | T35: 109.6733696 | U35: 109.6733696
E36: CPIH: March - index | G36: index | J36: 97.8 | K36: 99.3 | L36: 99.6 | M36: 100.4 | N36: 102.7 | O36: 105.1 | P36: 107.6224 | Q36: 109.8824704 | R36: 109.8824704 | S36: 109.8824704 | T36: 109.8824704 | U36: 109.8824704
E38: CPIH: Financial year average - index | G38: index | J38: =AVERAGE(J25:J36) -> 96.58333333 | K38: 98.6 | L38: 99.725 | M38: 100.1666667 | N38: 101.5416667 | O38: 104.2166667 | P38: 106.7178667 | Q38: 108.9589419 | R38: 108.9589419 | S38: 108.9589419 | T38: 108.9589419 | U38: 108.9589419
A41: RPI INDEXATION
B43: RPI: Index value series
E44: =Inputs!E$52 -> Retail Price Index for April | F44: =Inputs!F$52 -> 0 | G44: =Inputs!G$52 -> index | H44: =Inputs!H$52 -> 0 | I44: =Inputs!I$52 -> 0 | J44: =Inputs!J$52 -> 242.5 | K44: =Inputs!K$52 -> 249.5 | L44: =Inputs!L$52 -> 255.7 | M44: =Inputs!M$52 -> 258 | N44: =Inputs!N$52 -> 261.4 | O44: =Inputs!O$52 -> 270.6 | P44: =Inputs!P$52 -> 279.8004 | Q44: =Inputs!Q$52 -> 288.4742124 | R44: =Inputs!R$52 -> 0 | S44: =Inputs!S$52 -> 0 | T44: =Inputs!T$52 -> 0 | U44: =Inputs!U$52 -> 0
E45: =Inputs!E$53 -> Retail Price Index for May | F45: =Inputs!F$53 -> 0 | G45: =Inputs!G$53 -> index | H45: =Inputs!H$53 -> 0 | I45: =Inputs!I$53 -> 0 | J45: =Inputs!J$53 -> 242.4 | K45: =Inputs!K$53 -> 250 | L45: =Inputs!L$53 -> 255.9 | M45: =Inputs!M$53 -> 258.5 | N45: =Inputs!N$53 -> 262.1 | O45: =Inputs!O$53 -> 271.7 | P45: =Inputs!P$53 -> 280.9378 | Q45: =Inputs!Q$53 -> 289.6468718 | R45: =Inputs!R$53 -> 0 | S45: =Inputs!S$53 -> 0 | T45: =Inputs!T$53 -> 0 | U45: =Inputs!U$53 -> 0
E46: =Inputs!E$54 -> Retail Price Index for June | F46: =Inputs!F$54 -> 0 | G46: =Inputs!G$54 -> index | H46: =Inputs!H$54 -> 0 | I46: =Inputs!I$54 -> 0 | J46: =Inputs!J$54 -> 241.8 | K46: =Inputs!K$54 -> 249.7 | L46: =Inputs!L$54 -> 256.3 | M46: =Inputs!M$54 -> 258.9 | N46: =Inputs!N$54 -> 263.1 | O46: =Inputs!O$54 -> 272.3 | P46: =Inputs!P$54 -> 281.5582 | Q46: =Inputs!Q$54 -> 290.2865042 | R46: =Inputs!R$54 -> 0 | S46: =Inputs!S$54 -> 0 | T46: =Inputs!T$54 -> 0 | U46: =Inputs!U$54 -> 0
E47: =Inputs!E$55 -> Retail Price Index for July | F47: =Inputs!F$55 -> 0 | G47: =Inputs!G$55 -> index | H47: =Inputs!H$55 -> 0 | I47: =Inputs!I$55 -> 0 | J47: =Inputs!J$55 -> 242.1 | K47: =Inputs!K$55 -> 249.7 | L47: =Inputs!L$55 -> 256 | M47: =Inputs!M$55 -> 258.6 | N47: =Inputs!N$55 -> 263.4 | O47: =Inputs!O$55 -> 272.9 | P47: =Inputs!P$55 -> 282.1786 | Q47: =Inputs!Q$55 -> 290.9261366 | R47: =Inputs!R$55 -> 0 | S47: =Inputs!S$55 -> 0 | T47: =Inputs!T$55 -> 0 | U47: =Inputs!U$55 -> 0
E48: =Inputs!E$56 -> Retail Price Index for August | F48: =Inputs!F$56 -> 0 | G48: =Inputs!G$56 -> index | H48: =Inputs!H$56 -> 0 | I48: =Inputs!I$56 -> 0 | J48: =Inputs!J$56 -> 243 | K48: =Inputs!K$56 -> 251 | L48: =Inputs!L$56 -> 257 | M48: =Inputs!M$56 -> 259.8 | N48: =Inputs!N$56 -> 264.4 | O48: =Inputs!O$56 -> 274.7 | P48: =Inputs!P$56 -> 284.0398 | Q48: =Inputs!Q$56 -> 292.8450338 | R48: =Inputs!R$56 -> 0 | S48: =Inputs!S$56 -> 0 | T48: =Inputs!T$56 -> 0 | U48: =Inputs!U$56 -> 0
E49: =Inputs!E$57 -> Retail Price Index for September | F49: =Inputs!F$57 -> 0 | G49: =Inputs!G$57 -> index | H49: =Inputs!H$57 -> 0 | I49: =Inputs!I$57 -> 0 | J49: =Inputs!J$57 -> 244.2 | K49: =Inputs!K$57 -> 251.9 | L49: =Inputs!L$57 -> 257.6 | M49: =Inputs!M$57 -> 259.6 | N49: =Inputs!N$57 -> 264.9 | O49: =Inputs!O$57 -> 275.1 | P49: =Inputs!P$57 -> 284.4534 | Q49: =Inputs!Q$57 -> 293.2714554 | R49: =Inputs!R$57 -> 0 | S49: =Inputs!S$57 -> 0 | T49: =Inputs!T$57 -> 0 | U49: =Inputs!U$57 -> 0
E50: =Inputs!E$58 -> Retail Price Index for October | F50: =Inputs!F$58 -> 0 | G50: =Inputs!G$58 -> index | H50: =Inputs!H$58 -> 0 | I50: =Inputs!I$58 -> 0 | J50: =Inputs!J$58 -> 245.6 | K50: =Inputs!K$58 -> 251.9 | L50: =Inputs!L$58 -> 257.7 | M50: =Inputs!M$58 -> 259.5 | N50: =Inputs!N$58 -> 264.8 | O50: =Inputs!O$58 -> 275.3 | P50: =Inputs!P$58 -> 284.6602 | Q50: =Inputs!Q$58 -> 293.4846662 | R50: =Inputs!R$58 -> 0 | S50: =Inputs!S$58 -> 0 | T50: =Inputs!T$58 -> 0 | U50: =Inputs!U$58 -> 0
E51: =Inputs!E$59 -> Retail Price Index for November | F51: =Inputs!F$59 -> 0 | G51: =Inputs!G$59 -> index | H51: =Inputs!H$59 -> 0 | I51: =Inputs!I$59 -> 0 | J51: =Inputs!J$59 -> 245.6 | K51: =Inputs!K$59 -> 252.1 | L51: =Inputs!L$59 -> 257.1 | M51: =Inputs!M$59 -> 259.8 | N51: =Inputs!N$59 -> 265.5 | O51: =Inputs!O$59 -> 275.8 | P51: =Inputs!P$59 -> 285.1772 | Q51: =Inputs!Q$59 -> 294.0176932 | R51: =Inputs!R$59 -> 0 | S51: =Inputs!S$59 -> 0 | T51: =Inputs!T$59 -> 0 | U51: =Inputs!U$59 -> 0
E52: =Inputs!E$60 -> Retail Price Index for December | F52: =Inputs!F$60 -> 0 | G52: =Inputs!G$60 -> index | H52: =Inputs!H$60 -> 0 | I52: =Inputs!I$60 -> 0 | J52: =Inputs!J$60 -> 246.8 | K52: =Inputs!K$60 -> 253.4 | L52: =Inputs!L$60 -> 257.5 | M52: =Inputs!M$60 -> 260.6 | N52: =Inputs!N$60 -> 267.1 | O52: =Inputs!O$60 -> 278.1 | P52: =Inputs!P$60 -> 287.5554 | Q52: =Inputs!Q$60 -> 296.4696174 | R52: =Inputs!R$60 -> 0 | S52: =Inputs!S$60 -> 0 | T52: =Inputs!T$60 -> 0 | U52: =Inputs!U$60 -> 0
E53: =Inputs!E$61 -> Retail Price Index for January | F53: =Inputs!F$61 -> 0 | G53: =Inputs!G$61 -> index | H53: =Inputs!H$61 -> 0 | I53: =Inputs!I$61 -> 0 | J53: =Inputs!J$61 -> 245.8 | K53: =Inputs!K$61 -> 252.6 | L53: =Inputs!L$61 -> 255.4 | M53: =Inputs!M$61 -> 258.8 | N53: =Inputs!N$61 -> 265.5 | O53: =Inputs!O$61 -> 276 | P53: =Inputs!P$61 -> 285.384 | Q53: =Inputs!Q$61 -> 294.230904 | R53: =Inputs!R$61 -> 0 | S53: =Inputs!S$61 -> 0 | T53: =Inputs!T$61 -> 0 | U53: =Inputs!U$61 -> 0
E54: =Inputs!E$62 -> Retail Price Index for February | F54: =Inputs!F$62 -> 0 | G54: =Inputs!G$62 -> index | H54: =Inputs!H$62 -> 0 | I54: =Inputs!I$62 -> 0 | J54: =Inputs!J$62 -> 247.6 | K54: =Inputs!K$62 -> 254.2 | L54: =Inputs!L$62 -> 256.7 | M54: =Inputs!M$62 -> 260 | N54: =Inputs!N$62 -> 268.4 | O54: =Inputs!O$62 -> 278.1 | P54: =Inputs!P$62 -> 287.5554 | Q54: =Inputs!Q$62 -> 296.4696174 | R54: =Inputs!R$62 -> 0 | S54: =Inputs!S$62 -> 0 | T54: =Inputs!T$62 -> 0 | U54: =Inputs!U$62 -> 0
E55: =Inputs!E$63 -> Retail Price Index for March | F55: =Inputs!F$63 -> 0 | G55: =Inputs!G$63 -> index | H55: =Inputs!H$63 -> 0 | I55: =Inputs!I$63 -> 0 | J55: =Inputs!J$63 -> 248.7 | K55: =Inputs!K$63 -> 254.8 | L55: =Inputs!L$63 -> 257.1 | M55: =Inputs!M$63 -> 261.1 | N55: =Inputs!N$63 -> 269.3 | O55: =Inputs!O$63 -> 278.3 | P55: =Inputs!P$63 -> 287.7622 | Q55: =Inputs!Q$63 -> 296.6828282 | R55: =Inputs!R$63 -> 0 | S55: =Inputs!S$63 -> 0 | T55: =Inputs!T$63 -> 0 | U55: =Inputs!U$63 -> 0
E57: =Inputs!E$65 -> RPI: Assumed percentage increase for unpopulated monthly values | F57: =Inputs!F$65 -> 0 | G57: =Inputs!G$65 -> % | H57: =Inputs!H$65 -> 0 | I57: =Inputs!I$65 -> 0 | J57: =Inputs!J$65 -> 0 | K57: =Inputs!K$65 -> 0 | L57: =Inputs!L$65 -> 0 | M57: =Inputs!M$65 -> 0 | N57: =Inputs!N$65 -> 0 | O57: =Inputs!O$65 -> 0 | P57: =Inputs!P$65 -> 0 | Q57: =Inputs!Q$65 -> 0 | R57: =Inputs!R$65 -> 0 | S57: =Inputs!S$65 -> 0 | T57: =Inputs!T$65 -> 0 | U57: =Inputs!U$65 -> 0
E59: RPI: April - index | G59: index | J59: =IF(J44 > 0, J44, I59 * (1 + J$57)) -> 242.5 | K59: =IF(K44 > 0, K44, J59 * (1 + K$57)) -> 249.5 | L59: 255.7 | M59: 258 | N59: 261.4 | O59: 270.6 | P59: 279.8004 | Q59: 288.4742124 | R59: 288.4742124 | S59: 288.4742124 | T59: 288.4742124 | U59: 288.4742124
E60: RPI: May - index | G60: index | J60: =IF(J45 > 0, J45, I60 * (1 + J$57)) -> 242.4 | K60: 250 | L60: 255.9 | M60: 258.5 | N60: 262.1 | O60: 271.7 | P60: 280.9378 | Q60: 289.6468718 | R60: 289.6468718 | S60: 289.6468718 | T60: 289.6468718 | U60: 289.6468718
E61: RPI: June - index | G61: index | J61: =IF(J46 > 0, J46, I61 * (1 + J$57)) -> 241.8 | K61: 249.7 | L61: 256.3 | M61: 258.9 | N61: 263.1 | O61: 272.3 | P61: 281.5582 | Q61: 290.2865042 | R61: 290.2865042 | S61: 290.2865042 | T61: 290.2865042 | U61: 290.2865042
E62: RPI: July - index | G62: index | J62: =IF(J47 > 0, J47, I62 * (1 + J$57)) -> 242.1 | K62: 249.7 | L62: 256 | M62: 258.6 | N62: 263.4 | O62: 272.9 | P62: 282.1786 | Q62: 290.9261366 | R62: 290.9261366 | S62: 290.9261366 | T62: 290.9261366 | U62: 290.9261366
E63: RPI: August - index | G63: index | J63: =IF(J48 > 0, J48, I63 * (1 + J$57)) -> 243 | K63: 251 | L63: 257 | M63: 259.8 | N63: 264.4 | O63: 274.7 | P63: 284.0398 | Q63: 292.8450338 | R63: 292.8450338 | S63: 292.8450338 | T63: 292.8450338 | U63: 292.8450338
E64: RPI: September- index | G64: index | J64: =IF(J49 > 0, J49, I64 * (1 + J$57)) -> 244.2 | K64: 251.9 | L64: 257.6 | M64: 259.6 | N64: 264.9 | O64: 275.1 | P64: 284.4534 | Q64: 293.2714554 | R64: 293.2714554 | S64: 293.2714554 | T64: 293.2714554 | U64: 293.2714554
E65: RPI: October - index | G65: index | J65: =IF(J50 > 0, J50, I65 * (1 + J$57)) -> 245.6 | K65: 251.9 | L65: 257.7 | M65: 259.5 | N65: 264.8 | O65: 275.3 | P65: 284.6602 | Q65: 293.4846662 | R65: 293.4846662 | S65: 293.4846662 | T65: 293.4846662 | U65: 293.4846662
E66: RPI: November - index | G66: index | J66: =IF(J51 > 0, J51, I66 * (1 + J$57)) -> 245.6 | K66: 252.1 | L66: 257.1 | M66: 259.8 | N66: 265.5 | O66: 275.8 | P66: 285.1772 | Q66: 294.0176932 | R66: 294.0176932 | S66: 294.0176932 | T66: 294.0176932 | U66: 294.0176932
E67: RPI: December - index | G67: index | J67: =IF(J52 > 0, J52, I67 * (1 + J$57)) -> 246.8 | K67: 253.4 | L67: 257.5 | M67: 260.6 | N67: 267.1 | O67: 278.1 | P67: 287.5554 | Q67: 296.4696174 | R67: 296.4696174 | S67: 296.4696174 | T67: 296.4696174 | U67: 296.4696174
E68: RPI: January - index | G68: index | J68: =IF(J53 > 0, J53, I68 * (1 + J$57)) -> 245.8 | K68: 252.6 | L68: 255.4 | M68: 258.8 | N68: 265.5 | O68: 276 | P68: 285.384 | Q68: 294.230904 | R68: 294.230904 | S68: 294.230904 | T68: 294.230904 | U68: 294.230904
E69: RPI: February - index | G69: index | J69: =IF(J54 > 0, J54, I69 * (1 + J$57)) -> 247.6 | K69: 254.2 | L69: 256.7 | M69: 260 | N69: 268.4 | O69: 278.1 | P69: 287.5554 | Q69: 296.4696174 | R69: 296.4696174 | S69: 296.4696174 | T69: 296.4696174 | U69: 296.4696174
E70: RPI: March - index | G70: index | J70: =IF(J55 > 0, J55, I70 * (1 + J$57)) -> 248.7 | K70: 254.8 | L70: 257.1 | M70: 261.1 | N70: 269.3 | O70: 278.3 | P70: 287.7622 | Q70: 296.6828282 | R70: 296.6828282 | S70: 296.6828282 | T70: 296.6828282 | U70: 296.6828282
E72: RPI: Financial year average - index | G72: index | J72: =AVERAGE(J59:J70) -> 244.675 | K72: 251.7333333 | L72: 256.6666667 | M72: 259.4333333 | N72: 264.9916667 | O72: 274.9083333 | P72: 284.2552167 | Q72: 293.0671284 | R72: 293.0671284 | S72: 293.0671284 | T72: 293.0671284 | U72: 293.0671284
A75: INFLATION
B77: Inflation of 2013 base prices FYA - RPI
E78: =Inputs!E$69 -> Year reference for FYA base price 1 | F78: =Inputs!F$69 -> 2013 | G78: =Inputs!G$69 -> year #
E79: =Inputs!E$72 -> Year reference for FYE end price | F79: =Inputs!F$72 -> 2020 | G79: =Inputs!G$72 -> year #
E80: =E$72 -> RPI: Financial year average - index | F80: 0 | G80: index | H80: 0 | I80: 0 | J80: 244.675 | K80: 251.7333333 | L80: 256.6666667 | M80: 259.4333333 | N80: 264.9916667 | O80: 274.9083333 | P80: 284.2552167 | Q80: 293.0671284 | R80: 293.0671284 | S80: 293.0671284 | T80: 293.0671284 | U80: 293.0671284
E81: =E$70 -> RPI: March - index | F81: 0 | G81: index | H81: 0 | I81: 0 | J81: 248.7 | K81: 254.8 | L81: 257.1 | M81: 261.1 | N81: 269.3 | O81: 278.3 | P81: 287.7622 | Q81: 296.6828282 | R81: 296.6828282 | S81: 296.6828282 | T81: 296.6828282 | U81: 296.6828282
E82: ="RPI inflate from " & F78 & " FYA to " & F79 & " FYE" -> RPI inflate from 2013 FYA to 2020 FYE | F82: =INDEX($J81:$U81, 1, MATCH($F79,$J$4:$U$4)) / INDEX($J80:$U80, 1, MATCH($F78,$J$4:$U$4)) -> 1.212558816 | G82: factor
B84: Inflation of 2018 base prices FYA - RPI
E85: =Inputs!E$70 -> Year reference for FYA base price 2 | F85: =Inputs!F$70 -> 2018 | G85: =Inputs!G$70 -> year #
E86: =Inputs!E$72 -> Year reference for FYE end price | F86: =Inputs!F$72 -> 2020 | G86: =Inputs!G$72 -> year #
E87: =E$72 -> RPI: Financial year average - index | F87: 0 | G87: index | H87: 0 | I87: 0 | J87: 244.675 | K87: 251.7333333 | L87: 256.6666667 | M87: 259.4333333 | N87: 264.9916667 | O87: 274.9083333 | P87: 284.2552167 | Q87: 293.0671284 | R87: 293.0671284 | S87: 293.0671284 | T87: 293.0671284 | U87: 293.0671284
E88: =E$70 -> RPI: March - index | F88: 0 | G88: index | H88: 0 | I88: 0 | J88: 248.7 | K88: 254.8 | L88: 257.1 | M88: 261.1 | N88: 269.3 | O88: 278.3 | P88: 287.7622 | Q88: 296.6828282 | R88: 296.6828282 | S88: 296.6828282 | T88: 296.6828282 | U88: 296.6828282
E89: ="RPI inflate from " & F85 & " FYA to " & F86 & " FYE" -> RPI inflate from 2018 FYA to 2020 FYE | F89: =INDEX($J88:$U88, 1, MATCH($F86,$J$4:$U$4)) / INDEX($J87:$U87, 1, MATCH($F85,$J$4:$U$4)) -> 1.079206383 | G89: factor
B91: Inflation of 2018 base prices FYE - RPI
E92: =Inputs!E$71 -> Year reference for FYE base price | F92: =Inputs!F$71 -> 2018 | G92: =Inputs!G$71 -> year #
E93: =Inputs!E$72 -> Year reference for FYE end price | F93: =Inputs!F$72 -> 2020 | G93: =Inputs!G$72 -> year #
E94: =E$70 -> RPI: March - index | F94: 0 | G94: index | H94: 0 | I94: 0 | J94: 248.7 | K94: 254.8 | L94: 257.1 | M94: 261.1 | N94: 269.3 | O94: 278.3 | P94: 287.7622 | Q94: 296.6828282 | R94: 296.6828282 | S94: 296.6828282 | T94: 296.6828282 | U94: 296.6828282
E95: ="RPI inflate from " & F92 & " FYE to " & F93 & " FYE" -> RPI inflate from 2018 FYE to 2020 FYE | F95: =INDEX($J94:$U94, 1, MATCH($F93,$J$4:$U$4)) / INDEX($J94:$U94, 1, MATCH($F92,$J$4:$U$4)) -> 1.066054 | G95: factor
A98: DEFLATION
E100: =Inputs!E$76 -> Year reference for FYE base price | F100: =Inputs!F$76 -> 2020 | G100: =Inputs!G$76 -> year #
E101: =Inputs!E$77 -> Year reference for FYA end price | F101: =Inputs!F$77 -> 2018 | G101: =Inputs!G$77 -> year #
E102: =Inputs!E$78 -> Year reference for FYE base price - IFRS 16 | F102: =Inputs!F$78 -> 2018 | G102: =Inputs!G$78 -> year #
E103: =E$36 -> CPIH: March - index | F103: =F$36 -> 0 | G103: index | H103: 0 | I103: 0 | J103: 97.8 | K103: 99.3 | L103: 99.6 | M103: 100.4 | N103: 102.7 | O103: 105.1 | P103: 107.6224 | Q103: 109.8824704 | R103: 109.8824704 | S103: 109.8824704 | T103: 109.8824704 | U103: 109.8824704
E104: =E$38 -> CPIH: Financial year average - index | F104: 0 | G104: index | H104: 0 | I104: 0 | J104: 96.58333333 | K104: 98.6 | L104: 99.725 | M104: 100.1666667 | N104: 101.5416667 | O104: 104.2166667 | P104: 106.7178667 | Q104: 108.9589419 | R104: 108.9589419 | S104: 108.9589419 | T104: 108.9589419 | U104: 108.9589419
E105: ="CPIH deflate from " & F100 & " FYE to " & F101 & " FYA" -> CPIH deflate from 2020 FYE to 2018 FYA | F105: =INDEX($J104:$U104, 1, MATCH($F101,$J$4:$U$4)) / INDEX($J103:$U103, 1, MATCH($F100,$J$4:$U$4)) -> 0.9484376014 | G105: factor
E106: ="CPIH deflate from " & F100 & " FYE to " & F101 & " FYE" -> CPIH deflate from 2020 FYE to 2018 FYE | F106: =INDEX($J103:$U103, 1, MATCH($F101,$J$4:$U$4)) / INDEX($J103:$U103, 1, MATCH($F100,$J$4:$U$4)) -> 0.9564764936 | G106: factor
E107: CPIH deflate from 2018 FYE to 2018 FYA - IFRS 16 | F107: =INDEX($J104:$U104, 1, MATCH($F101,$J$4:$U$4)) / INDEX($J103:$U103, 1, MATCH($F102,$J$4:$U$4)) -> 0.9915953061 | G107: factor

Sheet Calc
A1: =RIGHT(CELL("filename", $A$1), LEN(CELL("filename", $A$1)) - SEARCH("]", CELL("filename", $A$1))) -> Calc
E2: =Time!E$25 -> Model period ending | J2: =Time!J$25 -> 2013-03-31 | K2: =Time!K$25 -> 2014-03-31 | L2: =Time!L$25 -> 2015-03-31 | M2: =Time!M$25 -> 2016-03-31 | N2: =Time!N$25 -> 2017-03-31 | O2: =Time!O$25 -> 2018-03-31 | P2: =Time!P$25 -> 2019-03-31 | Q2: =Time!Q$25 -> 2020-03-31 | R2: =Time!R$25 -> 2021-03-31 | S2: =Time!S$25 -> 2022-03-31 | T2: =Time!T$25 -> 2023-03-31 | U2: =Time!U$25 -> 2024-03-31
E3: =Time!E$80 -> Timeline label | J3: =Time!J$80 -> Pre-Fcst | K3: =Time!K$80 -> Pre-Fcst | L3: =Time!L$80 -> Pre-Fcst | M3: =Time!M$80 -> Pre-Fcst | N3: =Time!N$80 -> Pre-Fcst | O3: =Time!O$80 -> Pre-Fcst | P3: =Time!P$80 -> Pre-Fcst | Q3: =Time!Q$80 -> Pre-Fcst | R3: =Time!R$80 -> Forecast | S3: =Time!S$80 -> Forecast | T3: =Time!T$80 -> Forecast | U3: =Time!U$80 -> Forecast
E4: =Time!E$103 -> Financial year ending | J4: =Time!J$103 -> 2013 | K4: =Time!K$103 -> 2014 | L4: =Time!L$103 -> 2015 | M4: =Time!M$103 -> 2016 | N4: =Time!N$103 -> 2017 | O4: =Time!O$103 -> 2018 | P4: =Time!P$103 -> 2019 | Q4: =Time!Q$103 -> 2020 | R4: =Time!R$103 -> 2021 | S4: =Time!S$103 -> 2022 | T4: =Time!T$103 -> 2023 | U4: =Time!U$103 -> 2024
E5: =Time!E$10 -> Model column counter | F5: Constant | G5: Unit | H5: Total | J5: =Time!J$10 -> 1 | K5: =Time!K$10 -> 2 | L5: =Time!L$10 -> 3 | M5: =Time!M$10 -> 4 | N5: =Time!N$10 -> 5 | O5: =Time!O$10 -> 6 | P5: =Time!P$10 -> 7 | Q5: =Time!Q$10 -> 8 | R5: =Time!R$10 -> 9 | S5: =Time!S$10 -> 10 | T5: =Time!T$10 -> 11 | U5: =Time!U$10 -> 12
A7: WATER SERVICES
B9: Water RCV closing balance at 31 March 2020
A10: =Inputs!A$85 -> APP8001W | E10: =Inputs!E$85 -> Wholesale water closing RCV at 31 March 2020 (from PR14 FD) | F10: =Inputs!F$85 -> 0 | G10: =Inputs!G$85 -> £m
A11: =Inputs!A$86 -> C00572_L021 | E11: =Inputs!E$86 -> Water ~ Total Adjustment RCV carry forward to PR19 | F11: =Inputs!F$86 -> -24.53766372 | G11: =Inputs!G$86 -> £m
A12: =Inputs!A$87 -> APP25001 | E12: =Inputs!E$87 -> Water ~ CIS RCV inflation correction | F12: =Inputs!F$87 -> -50.61785831 | G12: =Inputs!G$87 -> £m
A13: =Inputs!A$88 -> C_APP27029_PD002 | E13: =Inputs!E$88 -> Net performance payment / (penalty) applied to RCV for end of period ODI adjustments ~ Water resources | F13: =Inputs!F$88 -> 0 | G13: =Inputs!G$88 -> £m
A14: =Inputs!A$89 -> C_APP27030_PD002 | E14: =Inputs!E$89 -> Net performance payment / (penalty) applied to RCV for end of period ODI adjustments ~ Water network plus | F14: =Inputs!F$89 -> 0 | G14: =Inputs!G$89 -> £m
A15: =Inputs!A$90 -> C_WS15025_PR19PD006 | E15: =Inputs!E$90 -> Water: RCV adjustment from totex menu model | F15: =Inputs!F$90 -> -6.709976904 | G15: =Inputs!G$90 -> £m
E17: =Indexation!E$82 -> RPI inflate from 2013 FYA to 2020 FYE | F17: =Indexation!F$82 -> 1.212558816 | G17: =Indexation!G$82 -> factor
E19: =E10 & " at 2020 FYE price base" -> Wholesale water closing RCV at 31 March 2020 (from PR14 FD) at 2020 FYE price base | F19: =F10 * F$17 -> 0 | G19: £m
E20: Water ~ Total Adjustment RCV carry forward to PR19 at 2020 FYE price base | F20: -29.75336045 | G20: £m
E21: Water ~ CIS RCV inflation correction at 2020 FYE price base | F21: -61.37713032 | G21: £m
E22: Net performance payment / (penalty) applied to RCV for end of period ODI adjustments ~ Water resources at 2020 FYE price base | F22: 0 | G22: £m
E23: Net performance payment / (penalty) applied to RCV for end of period ODI adjustments ~ Water network plus at 2020 FYE price base | F23: 0 | G23: £m
E24: Water: RCV adjustment from totex menu model at 2020 FYE price base | F24: -8.136241647 | G24: £m
A26: =Inputs!A$91 -> APP8009W | E26: =Inputs!E$91 -> Water ~ Other adjustment to wholesale RCV | F26: =Inputs!F$91 -> 0 | G26: =Inputs!G$91 -> £m
A27: =Inputs!A$92 -> C_A7010W_PR19PD003 | E27: =Inputs!E$92 -> Water ~ NPV effect of 50% of proceeds from disposals of interest in land | F27: =Inputs!F$92 -> -0.8138892356 | G27: =Inputs!G$92 -> £m
E29: =Indexation!E$95 -> RPI inflate from 2018 FYE to 2020 FYE | F29: =Indexation!F$95 -> 1.066054 | G29: =Indexation!G$95 -> factor
E30: =Indexation!E$89 -> RPI inflate from 2018 FYA to 2020 FYE | F30: =Indexation!F$89 -> 1.079206383 | G30: =Indexation!G$89 -> factor
E32: =E26 & " at 2020 FYE price base" -> Water ~ Other adjustment to wholesale RCV at 2020 FYE price base | F32: =F26 * F29 -> 0 | G32: £m
E33: =E27 & " at 2020 FYE price base" -> Water ~ NPV effect of 50% of proceeds from disposals of interest in land at 2020 FYE price base | F33: =F27 * F30 -> -0.8783544585 | G33: £m
C35: Values expressed in 2017-18 FYE CPIH deflated price base for table App8
E36: =E$19 -> Wholesale water closing RCV at 31 March 2020 (from PR14 FD) at 2020 FYE price base | F36: =F$19 -> 0 | G36: £m
E37: =E$20 -> Water ~ Total Adjustment RCV carry forward to PR19 at 2020 FYE price base | F37: =F$20 -> -29.75336045 | G37: £m
E38: =E$21 -> Water ~ CIS RCV inflation correction at 2020 FYE price base | F38: =F$21 -> -61.37713032 | G38: £m
E39: =E$33 -> Water ~ NPV effect of 50% of proceeds from disposals of interest in land at 2020 FYE price base | F39: =F$33 -> -0.8783544585 | G39: £m
E40: =E$22 -> Net performance payment / (penalty) applied to RCV for end of period ODI adjustments ~ Water resources at 2020 FYE price base | F40: =F$22 -> 0 | G40: £m
E41: =E$23 -> Net performance payment / (penalty) applied to RCV for end of period ODI adjustments ~ Water network plus at 2020 FYE price base | F41: =F$23 -> 0 | G41: £m
E42: =E$24 -> Water: RCV adjustment from totex menu model at 2020 FYE price base | F42: =F$24 -> -8.136241647 | G42: £m
E43: =E$32 -> Water ~ Other adjustment to wholesale RCV at 2020 FYE price base | F43: =F$32 -> 0 | G43: £m
E45: =Indexation!E$106 -> CPIH deflate from 2020 FYE to 2018 FYE | F45: =Indexation!F$106 -> 0.9564764936 | G45: =Indexation!G$106 -> factor
A47: C_APP8002W | E47: Wholesale water closing RCV at 31 March 2020 before midnight adjustments at 2017-18 FYE CPIH deflated price base | F47: =F36 * F$45 -> 0 | G47: £m
A48: C_APP8003W | E48: Water ~ Total Adjustment RCV carry forward to PR19 at 2017-18 FYE CPIH deflated price base | F48: -28.45838988 | G48: £m
A49: C_APP8004W | E49: Water ~ CIS RCV inflation correction at 2017-18 FYE CPIH deflated price base | F49: -58.7057824 | G49: £m
A50: C_APP8005W | E50: Water ~ NPV effect of 50% of proceeds from disposals of interest in land at 2017-18 FYE CPIH deflated price base | F50: -0.8401253927 | G50: £m
A51: C_APP8006W | E51: Water ~ ODI RCV adjustment allocated to Water resources at 2017-18 FYE CPIH deflated price base | F51: 0 | G51: £m
A52: C_APP8007W | E52: Water ~ ODI RCV adjustment allocated to Water network plus at 2017-18 FYE CPIH deflated price base | F52: 0 | G52: £m
A53: C_APP8008W | E53: Water ~ Totex menu RCV adjustment at 2017-18 FYE CPIH deflated price base | F53: -7.782123882 | G53: £m
A54: C_APP8009W | E54: Water ~ Other adjustment to wholesale RCV at 2017-18 FYE CPIH deflated price base | F54: 0 | G54: £m
A55: C_APP8010W | E55: Total wholesale water RCV at 31 March 2020 post midnight adjustments before allocation to price control units at 2017-18 FYE CPIH deflated price base | F55: =SUM(F47:F54) -> -95.78642156 | G55: £m
C57: PR14 reconciliation adjustments expressed in 2017-18 FYA CPIH deflated price base
E58: =E$20 -> Water ~ Total Adjustment RCV carry forward to PR19 at 2020 FYE price base | F58: =F$20 -> -29.75336045 | G58: £m
E59: =E$21 -> Water ~ CIS RCV inflation correction at 2020 FYE price base | F59: =F$21 -> -61.37713032 | G59: £m
E60: =E$33 -> Water ~ NPV effect of 50% of proceeds from disposals of interest in land at 2020 FYE price base | F60: =F$33 -> -0.8783544585 | G60: £m
E61: =E$22 -> Net performance payment / (penalty) applied to RCV for end of period ODI adjustments ~ Water resources at 2020 FYE price base | F61: =F$22 -> 0 | G61: £m
E62: =E$23 -> Net performance payment / (penalty) applied to RCV for end of period ODI adjustments ~ Water network plus at 2020 FYE price base | F62: =F$23 -> 0 | G62: £m
E63: =E$24 -> Water: RCV adjustment from totex menu model at 2020 FYE price base | F63: =F$24 -> -8.136241647 | G63: £m
E64: =E$32 -> Water ~ Other adjustment to wholesale RCV at 2020 FYE price base | F64: =F$32 -> 0 | G64: £m
E66: =Indexation!E$105 -> CPIH deflate from 2020 FYE to 2018 FYA | F66: =Indexation!F$105 -> 0.9484376014 | G66: =Indexation!G$105 -> factor
A68: C_APP25003 | E68: Water ~ Total adjustment RCV carry forward to PR19 at 2017-18 FYA CPIH deflated price base | F68: =F58 * F$66 -> -28.21920582 | G68: £m
A69: C_APP25007 | E69: Water ~ CIS RCV inflation correction at 2017-18 FYA CPIH deflated price base | F69: -58.21237827 | G69: £m
A70: C_A7011W | E70: Water ~ NPV effect of 50% of proceeds from disposals of interest in land at 2017-18 FYA CPIH deflated price base | F70: -0.8330643959 | G70: £m
A71: C_APP27048 | E71: ODI end of period RCV adjustment ~ Water resources at 2017-18 FYA CPIH deflated price base | F71: 0 | G71: £m
A72: C_APP27049 | E72: ODI end of period RCV adjustment ~ Water network plus at 2017-18 FYA CPIH deflated price base | F72: 0 | G72: £m
A73: C_WS15027 | E73: Water: Totex menu RCV adjustment at 2017-18 FYA CPIH deflated price base | F73: -7.716717512 | G73: £m
A74: C030 | E74: Water ~ Other adjustment to wholesale RCV at 2017-18 FYA CPIH deflated price base | F74: 0 | G74: £m
C76: IFRS16 RCV adjustments expressed in 2017-18 FYA CPIH deflated price base
A77: =Inputs!A$99 -> APP33021WR | E77: =Inputs!E$99 -> Water resources IFRS16 RCV adjustment | F77: =Inputs!F$99 -> 0 | G77: =Inputs!G$99 -> £m
A78: =Inputs!A$100 -> APP33021WNP | E78: =Inputs!E$100 -> Water network plus IFRS16 RCV adjustment | F78: =Inputs!F$100 -> 0 | G78: =Inputs!G$100 -> £m
E80: =Indexation!E$107 -> CPIH deflate from 2018 FYE to 2018 FYA - IFRS 16 | F80: =Indexation!F$107 -> 0.9915953061 | G80: =Indexation!G$107 -> factor
A82: C_APP8022WR | E82: Water resources IFRS16 RCV adjustment at 2017-18 FYA CPIH deflated price base | F82: =F77 * F$80 -> 0 | G82: £m
A83: C_APP8022WN | E83: Water network plus IFRS16 RCV adjustment at 2017-18 FYA CPIH deflated price base | F83: =F78 * F$80 -> 0 | G83: £m
B85: Total wholesale water RCV at 31 March 2020 post midnight adjustments before allocation to price control units at 2020 FYE price base
E86: =E$19 -> Wholesale water closing RCV at 31 March 2020 (from PR14 FD) at 2020 FYE price base | F86: 0 | G86: £m
E87: =E$20 -> Water ~ Total Adjustment RCV carry forward to PR19 at 2020 FYE price base | F87: =F$20 -> -29.75336045 | G87: =G$20 -> £m
E88: =E$21 -> Water ~ CIS RCV inflation correction at 2020 FYE price base | F88: =F$21 -> -61.37713032 | G88: =G$21 -> £m
E89: =E$22 -> Net performance payment / (penalty) applied to RCV for end of period ODI adjustments ~ Water resources at 2020 FYE price base | F89: =F$22 -> 0 | G89: =G$22 -> £m
E90: =E$23 -> Net performance payment / (penalty) applied to RCV for end of period ODI adjustments ~ Water network plus at 2020 FYE price base | F90: =F$23 -> 0 | G90: £m
E91: =E$24 -> Water: RCV adjustment from totex menu model at 2020 FYE price base | F91: =F$24 -> -8.136241647 | G91: =G$24 -> £m
E92: =E$32 -> Water ~ Other adjustment to wholesale RCV at 2020 FYE price base | F92: 0 | G92: £m
E93: =E$33 -> Water ~ NPV effect of 50% of proceeds from disposals of interest in land at 2020 FYE price base | F93: =F$33 -> -0.8783544585 | G93: =G$33 -> £m
E94: Total wholesale water RCV at 31 March 2020 post midnight adjustments before allocation to price control units at 2020 FYE price base | F94: =SUM(F86:F93) -> -100.1450869 | G94: £m
B96: Water resources
E97: =E$94 -> Total wholesale water RCV at 31 March 2020 post midnight adjustments before allocation to price control units at 2020 FYE price base | F97: -100.1450869 | G97: £m
A98: =Inputs!A$96 -> WS12019WR | E98: =Inputs!E$96 -> Water resources % of total wholesale water RCV ~ 31 March 2020 | F98: =Inputs!F$96 -> 0 | G98: =Inputs!G$96 -> %
E99: =E$89 -> Net performance payment / (penalty) applied to RCV for end of period ODI adjustments ~ Water resources at 2020 FYE price base | F99: =F$89 -> 0 | G99: £m
E100: =E$90 -> Net performance payment / (penalty) applied to RCV for end of period ODI adjustments ~ Water network plus at 2020 FYE price base | F100: =F$90 -> 0 | G100: £m
E101: Water resources opening RCV at 2020 FYE price base | F101: =(F97 - F99 - F100) * F98 + F99 -> 0 | G101: £m
E103: =E$101 -> Water resources opening RCV at 2020 FYE price base | F103: 0 | G103: £m
E104: =Inputs!E$94 -> % of RCV to index by RPI - water services | F104: =Inputs!F$94 -> 0.5 | G104: =Inputs!G$94 -> %
E105: Water resources RPI linked RCV at 2020 FYE price base | F105: =F103 * F104 -> 0 | G105: £m
E107: =E$101 -> Water resources opening RCV at 2020 FYE price base | F107: 0 | G107: £m
E108: =Inputs!E$94 -> % of RCV to index by RPI - water services | F108: =Inputs!F$94 -> 0.5 | G108: =Inputs!G$94 -> %
E109: Water resources CPIH linked RCV at 2020 FYE price base | F109: =F107 * (1 - F108) -> 0 | G109: £m
E111: =E$105 -> Water resources RPI linked RCV at 2020 FYE price base | F111: 0 | G111: £m
E112: =E$109 -> Water resources CPIH linked RCV at 2020 FYE price base | F112: 0 | G112: £m
E114: =Indexation!E$105 -> CPIH deflate from 2020 FYE to 2018 FYA | F114: =Indexation!F$105 -> 0.9484376014 | G114: =Indexation!G$105 -> factor
E116: Water resources 2020 RCV RPI inflated ~ 1 April (opening balance excluding IFRS16 adjustment) at 2017-18 CPIH deflated price base | F116: =F111 * F$114 -> 0 | G116: £m
E117: Water resources 2020 RCV CPIH inflated ~ 1 April (opening balance excluding IFRS16 adjustment) at 2017-18 CPIH deflated price base | F117: =F112 * F$114 -> 0 | G117: £m
E119: =E82 -> Water resources IFRS16 RCV adjustment at 2017-18 FYA CPIH deflated price base | F119: =F82 -> 0 | G119: =G82 -> £m
E120: =Inputs!E$94 -> % of RCV to index by RPI - water services | F120: =Inputs!F$94 -> 0.5 | G120: =Inputs!G$94 -> %
E121: Water resources IFRS16 adjustment RPI inflated RCV at 2017-18 FYA CPIH deflated price base | F121: =F119 * F120 -> 0 | G121: £m
E123: =E82 -> Water resources IFRS16 RCV adjustment at 2017-18 FYA CPIH deflated price base | F123: =F82 -> 0 | G123: =G82 -> £m
E124: =Inputs!E$94 -> % of RCV to index by RPI - water services | F124: =Inputs!F$94 -> 0.5 | G124: =Inputs!G$94 -> %
E125: Water resources IFRS16 adjustment CPIH inflated RCV at 2017-18 FYA CPIH deflated price base | F125: =F123 * (1 - F124) -> 0 | G125: £m
E127: =E116 -> Water resources 2020 RCV RPI inflated ~ 1 April (opening balance excluding IFRS16 adjustment) at 2017-18 CPIH deflated price base | F127: =F116 -> 0 | G127: £m
E128: =E121 -> Water resources IFRS16 adjustment RPI inflated RCV at 2017-18 FYA CPIH deflated price base | F128: =F121 -> 0 | G128: £m
A129: C_APP8014WR | E129: Water resources 2020 RCV RPI inflated ~ 1 April (opening balance) at 2017-18 CPIH deflated price base | F129: =F127 + F128 -> 0 | G129: £m
E131: =E117 -> Water resources 2020 RCV CPIH inflated ~ 1 April (opening balance excluding IFRS16 adjustment) at 2017-18 CPIH deflated price base | F131: =F117 -> 0 | G131: =G117 -> £m
E132: =E125 -> Water resources IFRS16 adjustment CPIH inflated RCV at 2017-18 FYA CPIH deflated price base | F132: =F125 -> 0 | G132: £m
A133: C_APP8016WR | E133: Water resources 2020 RCV CPIH inflated ~ 1 April (opening balance) at 2017-18 CPIH deflated price base | F133: =F131 + F132 -> 0 | G133: £m
B135: Water network plus
E136: =E$94 -> Total wholesale water RCV at 31 March 2020 post midnight adjustments before allocation to price control units at 2020 FYE price base | F136: -100.1450869 | G136: £m
E137: =Inputs!E$97 -> Water network plus % of total wholesale water RCV ~ 31 March 2020 | F137: =Inputs!F$97 -> 1 | G137: =Inputs!G$97 -> %
E138: =E$89 -> Net performance payment / (penalty) applied to RCV for end of period ODI adjustments ~ Water resources at 2020 FYE price base | F138: =F$89 -> 0 | G138: £m
E139: =E$90 -> Net performance payment / (penalty) applied to RCV for end of period ODI adjustments ~ Water network plus at 2020 FYE price base | F139: =F$90 -> 0 | G139: £m
E140: Water network plus opening RCV at 2020 FYE price base | F140: =(F136 - F138 - F139) * F137 + F139 -> -100.1450869 | G140: £m
E142: =E$140 -> Water network plus opening RCV at 2020 FYE price base | F142: -100.1450869 | G142: £m
E143: =Inputs!E$94 -> % of RCV to index by RPI - water services | F143: =Inputs!F$94 -> 0.5 | G143: =Inputs!G$94 -> %
E144: Water network plus RPI linked RCV at 2020 FYE price base | F144: =F142 * F143 -> -50.07254344 | G144: £m
E146: =E$140 -> Water network plus opening RCV at 2020 FYE price base | F146: -100.1450869 | G146: £m
E147: =Inputs!E$94 -> % of RCV to index by RPI - water services | F147: =Inputs!F$94 -> 0.5 | G147: =Inputs!G$94 -> %
E148: Water network plus CPIH linked RCV at 2020 FYE price base | F148: =F146 * (1 - F147) -> -50.07254344 | G148: £m
E150: =E$144 -> Water network plus RPI linked RCV at 2020 FYE price base | F150: =F$144 -> -50.07254344 | G150: £m
E151: =E$148 -> Water network plus CPIH linked RCV at 2020 FYE price base | F151: -50.07254344 | G151: £m
E153: =Indexation!E$105 -> CPIH deflate from 2020 FYE to 2018 FYA | F153: =Indexation!F$105 -> 0.9484376014 | G153: =Indexation!G$105 -> factor
E155: Water network plus RCV RPI inflated ~ 1 April (opening balance excluding IFRS16 adjustment) at 2017-18 CPIH deflated price base | F155: =F150 * F$153 -> -47.490683 | G155: £m
E156: Water network plus RCV CPIH inflated ~ 1 April (opening balance excluding IFRS16 adjustment) at 2017-18 CPIH deflated price base | F156: =F151 * F$153 -> -47.490683 | G156: £m
E158: =E83 -> Water network plus IFRS16 RCV adjustment at 2017-18 FYA CPIH deflated price base | F158: =F83 -> 0 | G158: =G83 -> £m
E159: =Inputs!E$94 -> % of RCV to index by RPI - water services | F159: =Inputs!F$94 -> 0.5 | G159: =Inputs!G$94 -> %
E160: Water network plus IFRS16 adjustment RPI inflated RCV at 2017-18 FYA CPIH deflated price base | F160: =F158 * F159 -> 0 | G160: £m
E162: =E83 -> Water network plus IFRS16 RCV adjustment at 2017-18 FYA CPIH deflated price base | F162: =F83 -> 0 | G162: £m
E163: =Inputs!E$94 -> % of RCV to index by RPI - water services | F163: =Inputs!F$94 -> 0.5 | G163: =Inputs!G$94 -> %
E164: Water network plus IFRS16 adjustment CPIH inflated RCV at 2017-18 FYA CPIH deflated price base | F164: =F162 * (1 - F163) -> 0 | G164: £m
E166: =E155 -> Water network plus RCV RPI inflated ~ 1 April (opening balance excluding IFRS16 adjustment) at 2017-18 CPIH deflated price base | F166: =F155 -> -47.490683 | G166: £m
E167: =E160 -> Water network plus IFRS16 adjustment RPI inflated RCV at 2017-18 FYA CPIH deflated price base | F167: =F160 -> 0 | G167: £m
A168: C_APP8014WN | E168: Water network plus RCV RPI inflated ~ 1 April (opening balance) at 2017-18 CPIH deflated price base | F168: =F166 + F167 -> -47.490683 | G168: £m
E170: =E156 -> Water network plus RCV CPIH inflated ~ 1 April (opening balance excluding IFRS16 adjustment) at 2017-18 CPIH deflated price base | F170: =F156 -> -47.490683 | G170: £m
E171: =E164 -> Water network plus IFRS16 adjustment CPIH inflated RCV at 2017-18 FYA CPIH deflated price base | F171: =F164 -> 0 | G171: £m
A172: C_APP8016WN | E172: Water network plus RCV CPIH inflated ~ 1 April (opening balance) at 2017-18 CPIH deflated price base | F172: =F170 + F171 -> -47.490683 | G172: £m
A175: WASTEWATER SERVICES
B177: Wastewater RCV closing balance at 31 March 2020
A178: =Inputs!A$104 -> APP8001WW | E178: =Inputs!E$104 -> Wholesale wastewater closing RCV at 31 March 2020 in 2012-13 prices (PR14 FD) | F178: =Inputs!F$104 -> 0 | G178: =Inputs!G$104 -> £m
A179: =Inputs!A$105 -> C00579_L021 | E179: =Inputs!E$105 -> Wastewater ~ Total Adjustment RCV carry forward to PR19 | F179: =Inputs!F$105 -> -2.158102757 | G179: =Inputs!G$105 -> £m
A180: =Inputs!A$106 -> APP25002 | E180: =Inputs!E$106 -> Wastewater ~ CIS RCV inflation correction | F180: =Inputs!F$106 -> -64.96938355 | G180: =Inputs!G$106 -> £m
A181: =Inputs!A$107 -> C_APP27031_PD002 | E181: =Inputs!E$107 -> Net performance payment / (penalty) applied to RCV for end of period ODI adjustments ~ Wastewater network plus | F181: =Inputs!F$107 -> 0 | G181: =Inputs!G$107 -> £m
A182: =Inputs!A$108 -> C_WWS15020_PR19PD006 | E182: =Inputs!E$108 -> Wastewater: RCV adjustment from totex menu model | F182: =Inputs!F$108 -> -131.3036848 | G182: =Inputs!G$108 -> £m
E184: =Indexation!E$82 -> RPI inflate from 2013 FYA to 2020 FYE | F184: =Indexation!F$82 -> 1.212558816 | G184: =Indexation!G$82 -> factor
E186: =E178 & " at 2020 FYE price base" -> Wholesale wastewater closing RCV at 31 March 2020 in 2012-13 prices (PR14 FD) at 2020 FYE price base | F186: =F178 * F$184 -> 0 | G186: £m
E187: =E179 & " at 2020 FYE price base" -> Wastewater ~ Total Adjustment RCV carry forward to PR19 at 2020 FYE price base | F187: =F179 * F$184 -> -2.616826523 | G187: £m
E188: =E180 & " at 2020 FYE price base" -> Wastewater ~ CIS RCV inflation correction at 2020 FYE price base | F188: =F180 * F$184 -> -78.77919877 | G188: £m
E189: =E181 & " at 2020 FYE price base" -> Net performance payment / (penalty) applied to RCV for end of period ODI adjustments ~ Wastewater network plus at 2020 FYE price base | F189: =F181 * F$184 -> 0 | G189: £m
E190: =E182 & " at 2020 FYE price base" -> Wastewater: RCV adjustment from totex menu model at 2020 FYE price base | F190: =F182 * F$184 -> -159.2134405 | G190: £m
A192: =Inputs!A$114 -> WWS12016BIO | E192: =Inputs!E$114 -> Bioresources RCV (prior to midnight adjustments) 31 March 2020 | F192: =Inputs!F$114 -> 0 | G192: =Inputs!G$114 -> £m
A193: =Inputs!A$109 -> APP8009WW | E193: =Inputs!E$109 -> Wastewater ~ Other adjustment to wholesale RCV | F193: =Inputs!F$109 -> 0 | G193: =Inputs!G$109 -> £m
A194: =Inputs!A$110 -> C_A7010WW_PR19PD003 | E194: =Inputs!E$110 -> Wastewater ~ NPV effect of 50% of proceeds from disposals of interest in land | F194: =Inputs!F$110 -> -3.973698382 | G194: =Inputs!G$110 -> £m
E196: =Indexation!E$95 -> RPI inflate from 2018 FYE to 2020 FYE | F196: =Indexation!F$95 -> 1.066054 | G196: =Indexation!G$95 -> factor
E197: =Indexation!E$89 -> RPI inflate from 2018 FYA to 2020 FYE | F197: =Indexation!F$89 -> 1.079206383 | G197: =Indexation!G$89 -> factor
E199: =E192 & " at 2020 FYE price base" -> Bioresources RCV (prior to midnight adjustments) 31 March 2020 at 2020 FYE price base | F199: =F192 * F196 -> 0 | G199: £m
E200: =E193 & " at 2020 FYE price base" -> Wastewater ~ Other adjustment to wholesale RCV at 2020 FYE price base | F200: =F193 * F196 -> 0 | G200: £m
E201: =E194 & " at 2020 FYE price base" -> Wastewater ~ NPV effect of 50% of proceeds from disposals of interest in land at 2020 FYE price base | F201: =F194 * F197 -> -4.28844066 | G201: £m
C203: Values expressed in 2017-18 FYE CPIH deflated price base for table App8
E204: =E$186 -> Wholesale wastewater closing RCV at 31 March 2020 in 2012-13 prices (PR14 FD) at 2020 FYE price base | F204: =F$186 -> 0 | G204: £m
E205: =E$187 -> Wastewater ~ Total Adjustment RCV carry forward to PR19 at 2020 FYE price base | F205: -2.616826523 | G205: £m
E206: =E$188 -> Wastewater ~ CIS RCV inflation correction at 2020 FYE price base | F206: -78.77919877 | G206: £m
E207: =E$201 -> Wastewater ~ NPV effect of 50% of proceeds from disposals of interest in land at 2020 FYE price base | F207: -4.28844066 | G207: £m
E208: =E$189 -> Net performance payment / (penalty) applied to RCV for end of period ODI adjustments ~ Wastewater network plus at 2020 FYE price base | F208: 0 | G208: £m
E209: =E$190 -> Wastewater: RCV adjustment from totex menu model at 2020 FYE price base | F209: -159.2134405 | G209: £m
E210: =E$200 -> Wastewater ~ Other adjustment to wholesale RCV at 2020 FYE price base | F210: 0 | G210: £m
E212: =Indexation!E$106 -> CPIH deflate from 2020 FYE to 2018 FYE | F212: =Indexation!F$106 -> 0.9564764936 | G212: =Indexation!G$106 -> factor
A214: C_APP8002WW | E214: Wholesale wastewater closing RCV at 31 March 2020 before midnight adjustments at 2017-18 FYE CPIH deflated price base | F214: =F204 * F$212 -> 0 | G214: £m
A215: C_APP8003WW | E215: Wastewater ~ Total adjustment RCV carry forward to PR19 at 2017-18 FYE CPIH deflated price base | F215: -2.502933057 | G215: £m
A216: C_APP8004WW | E216: Wastewater ~ CIS RCV inflation correction at 2017-18 FYE CPIH deflated price base | F216: -75.35045181 | G216: £m
A217: C_APP8005WW | E217: Wastewater ~ NPV effect of 50% of proceeds from disposals of interest in land at 2017-18 FYE CPIH deflated price base | F217: -4.101792686 | G217: £m
A218: C_APP8006WW | E218: Wastewater ~ ODI RCV adjustment allocated to Wastewater network plus at 2017-18 FYE CPIH deflated price base | F218: 0 | G218: £m
A219: C_APP8008WW | E219: Wastewater ~ Totex menu RCV adjustment at 2017-18 FYE CPIH deflated price base | F219: -152.2839133 | G219: £m
A220: C_APP8009WW | E220: Wastewater ~ Other adjustment to wholesale RCV at 2017-18 FYE CPIH deflated price base | F220: 0 | G220: £m
A221: C_APP8010WW | E221: Total wholesale wastewater RCV at 31 March 2020 post midnight adjustments before allocation to price control units at 2017-18 FYE CPIH deflated price base | F221: =SUM(F214:F220) -> -234.2390909 | G221: £m
C223: PR14 reconciliation adjustments expressed in 2017-18 FYA CPIH deflated price base
E224: =E$187 -> Wastewater ~ Total Adjustment RCV carry forward to PR19 at 2020 FYE price base | F224: -2.616826523 | G224: £m
E225: =E$188 -> Wastewater ~ CIS RCV inflation correction at 2020 FYE price base | F225: -78.77919877 | G225: £m
E226: =E$201 -> Wastewater ~ NPV effect of 50% of proceeds from disposals of interest in land at 2020 FYE price base | F226: -4.28844066 | G226: £m
E227: =E$189 -> Net performance payment / (penalty) applied to RCV for end of period ODI adjustments ~ Wastewater network plus at 2020 FYE price base | F227: 0 | G227: £m
E228: =E$190 -> Wastewater: RCV adjustment from totex menu model at 2020 FYE price base | F228: -159.2134405 | G228: £m
E229: =E$200 -> Wastewater ~ Other adjustment to wholesale RCV at 2020 FYE price base | F229: 0 | G229: £m
E231: =Indexation!E$105 -> CPIH deflate from 2020 FYE to 2018 FYA | F231: =Indexation!F$105 -> 0.9484376014 | G231: =Indexation!G$105 -> factor
A233: C_APP25005 | E233: Wastewater ~ Total Adjustment RCV carry forward to PR19 at 2017-18 FYA CPIH deflated price base | F233: =F224 * F$231 -> -2.48189667 | G233: £m
A234: C_APP25008 | E234: Wastewater ~ CIS RCV inflation correction at 2017-18 FYA CPIH deflated price base | F234: -74.71715432 | G234: £m
A235: C_A7011WW | E235: Wastewater ~ NPV effect of 50% of proceeds from disposals of interest in land at 2017-18 FYA CPIH deflated price base | F235: -4.067318374 | G235: £m
A236: C_APP27050 | E236: ODI end of period RCV adjustment ~ Wastewater network plus at 2017-18 FYA CPIH deflated price base | F236: 0 | G236: £m
A237: C_WWS15022 | E237: Wastewater: Totex menu RCV adjustment at 2017-18 FYA CPIH deflated price base | F237: -151.0040136 | G237: £m
A238: C040 | E238: Wastewater ~ Other adjustment to wholesale RCV at 2017-18 FYA CPIH deflated price base | F238: 0 | G238: £m
E240: =E199 -> Bioresources RCV (prior to midnight adjustments) 31 March 2020 at 2020 FYE price base | F240: =F199 -> 0 | G240: £m
E242: =Indexation!E$105 -> CPIH deflate from 2020 FYE to 2018 FYA | F242: =Indexation!F$105 -> 0.9484376014 | G242: =Indexation!G$105 -> factor
A244: C_RCV1011BIO_FYA | E244: Bioresources RCV (prior to midnight adjustments) 31 March 2020 at 2017-18 FYA CPIH deflated price base | F244: =F240 * F$242 -> 0 | G244: £m
C246: IFRS16 RCV adjustments expressed in 2017-18 FYA CPIH deflated price base
A247: =Inputs!A$116 -> APP33021BIO | E247: =Inputs!E$116 -> Bioresources IFRS16 RCV adjustment | F247: =Inputs!F$116 -> 0 | G247: =Inputs!G$116 -> £m
A248: =Inputs!A$117 -> APP33021WWNP | E248: =Inputs!E$117 -> Wastewater network plus IFRS16 RCV adjustment | F248: =Inputs!F$117 -> 0 | G248: =Inputs!G$117 -> £m
E250: =Indexation!E$107 -> CPIH deflate from 2018 FYE to 2018 FYA - IFRS 16 | F250: =Indexation!F$107 -> 0.9915953061 | G250: =Indexation!G$107 -> factor
A252: C_APP8022BIO | E252: Bioresources IFRS16 RCV adjustment at 2017-18 FYA CPIH deflated price base | F252: =F247 * F$250 -> 0 | G252: £m
A253: C_APP8022WWN | E253: Wastewater network plus IFRS16 RCV adjustment at 2017-18 FYA CPIH deflated price base | F253: =F248 * F$250 -> 0 | G253: £m
B255: Total wholesale wastewater RCV at 31 March 2020 post midnight adjustments before allocation to price control units at 2020 FYE price base
E256: =E$186 -> Wholesale wastewater closing RCV at 31 March 2020 in 2012-13 prices (PR14 FD) at 2020 FYE price base | F256: 0 | G256: £m
E257: =E$187 -> Wastewater ~ Total Adjustment RCV carry forward to PR19 at 2020 FYE price base | F257: -2.616826523 | G257: £m
E258: =E$188 -> Wastewater ~ CIS RCV inflation correction at 2020 FYE price base | F258: -78.77919877 | G258: £m
... 129 more rows

Sheet Summary_Output
A1: =RIGHT(CELL("filename", $A$1), LEN(CELL("filename", $A$1)) - SEARCH("]", CELL("filename", $A$1))) -> Summary_Output
E2: =Time!E$25 -> Model period ending | K2: =Time!K$25 -> 2014-03-31 | L2: =Time!L$25 -> 2015-03-31 | M2: =Time!M$25 -> 2016-03-31 | N2: =Time!N$25 -> 2017-03-31 | O2: =Time!O$25 -> 2018-03-31 | P2: =Time!P$25 -> 2019-03-31 | Q2: =Time!Q$25 -> 2020-03-31 | R2: =Time!R$25 -> 2021-03-31 | S2: =Time!S$25 -> 2022-03-31 | T2: =Time!T$25 -> 2023-03-31 | U2: =Time!U$25 -> 2024-03-31
E3: =Time!E$80 -> Timeline label | K3: =Time!K$80 -> Pre-Fcst | L3: =Time!L$80 -> Pre-Fcst | M3: =Time!M$80 -> Pre-Fcst | N3: =Time!N$80 -> Pre-Fcst | O3: =Time!O$80 -> Pre-Fcst | P3: =Time!P$80 -> Pre-Fcst | Q3: =Time!Q$80 -> Pre-Fcst | R3: =Time!R$80 -> Forecast | S3: =Time!S$80 -> Forecast | T3: =Time!T$80 -> Forecast | U3: =Time!U$80 -> Forecast
E4: =Time!E$103 -> Financial year ending | K4: =Time!K$103 -> 2014 | L4: =Time!L$103 -> 2015 | M4: =Time!M$103 -> 2016 | N4: =Time!N$103 -> 2017 | O4: =Time!O$103 -> 2018 | P4: =Time!P$103 -> 2019 | Q4: =Time!Q$103 -> 2020 | R4: =Time!R$103 -> 2021 | S4: =Time!S$103 -> 2022 | T4: =Time!T$103 -> 2023 | U4: =Time!U$103 -> 2024
E5: =Time!E$10 -> Model column counter | F5: Constant | G5: Unit | K5: =Time!K$10 -> 2 | L5: =Time!L$10 -> 3 | M5: =Time!M$10 -> 4 | N5: =Time!N$10 -> 5 | O5: =Time!O$10 -> 6 | P5: =Time!P$10 -> 7 | Q5: =Time!Q$10 -> 8 | R5: =Time!R$10 -> 9 | S5: =Time!S$10 -> 10 | T5: =Time!T$10 -> 11 | U5: =Time!U$10 -> 12
A7: WATER SERVICES
B9: Values expressed in 2017-18 FYE CPIH deflated price base for table App8
A10: =Calc!A$47 -> C_APP8002W | E10: =Calc!E$47 -> Wholesale water closing RCV at 31 March 2020 before midnight adjustments at 2017-18 FYE CPIH deflated price base | F10: =Calc!F$47 -> 0 | G10: =Calc!G$47 -> £m
A11: =Calc!A$48 -> C_APP8003W | E11: =Calc!E$48 -> Water ~ Total Adjustment RCV carry forward to PR19 at 2017-18 FYE CPIH deflated price base | F11: =Calc!F$48 -> -28.45838988 | G11: =Calc!G$48 -> £m
A12: =Calc!A$49 -> C_APP8004W | E12: =Calc!E$49 -> Water ~ CIS RCV inflation correction at 2017-18 FYE CPIH deflated price base | F12: =Calc!F$49 -> -58.7057824 | G12: =Calc!G$49 -> £m
A13: =Calc!A$50 -> C_APP8005W | E13: =Calc!E$50 -> Water ~ NPV effect of 50% of proceeds from disposals of interest in land at 2017-18 FYE CPIH deflated price base | F13: =Calc!F$50 -> -0.8401253927 | G13: =Calc!G$50 -> £m
A14: =Calc!A$51 -> C_APP8006W | E14: =Calc!E$51 -> Water ~ ODI RCV adjustment allocated to Water resources at 2017-18 FYE CPIH deflated price base | F14: =Calc!F$51 -> 0 | G14: =Calc!G$51 -> £m
A15: =Calc!A$52 -> C_APP8007W | E15: =Calc!E$52 -> Water ~ ODI RCV adjustment allocated to Water network plus at 2017-18 FYE CPIH deflated price base | F15: =Calc!F$52 -> 0 | G15: =Calc!G$52 -> £m
A16: =Calc!A$53 -> C_APP8008W | E16: =Calc!E$53 -> Water ~ Totex menu RCV adjustment at 2017-18 FYE CPIH deflated price base | F16: =Calc!F$53 -> -7.782123882 | G16: =Calc!G$53 -> £m
A17: =Calc!A$54 -> C_APP8009W | E17: =Calc!E$54 -> Water ~ Other adjustment to wholesale RCV at 2017-18 FYE CPIH deflated price base | F17: =Calc!F$54 -> 0 | G17: =Calc!G$54 -> £m
A18: =Calc!A$55 -> C_APP8010W | E18: =Calc!E$55 -> Total wholesale water RCV at 31 March 2020 post midnight adjustments before allocation to price control units at 2017-18 FYE CPIH deflated price base | F18: =Calc!F$55 -> -95.78642156 | G18: =Calc!G$55 -> £m
B20: Values expressed in 2017-18 FYA CPIH deflated price base on table App8
A21: =Calc!A$82 -> C_APP8022WR | E21: =Calc!E$82 -> Water resources IFRS16 RCV adjustment at 2017-18 FYA CPIH deflated price base | F21: =Calc!F$82 -> 0 | G21: =Calc!G$82 -> £m
A22: =Calc!A$129 -> C_APP8014WR | E22: =Calc!E$129 -> Water resources 2020 RCV RPI inflated ~ 1 April (opening balance) at 2017-18 CPIH deflated price base | F22: =Calc!F$129 -> 0 | G22: =Calc!G$129 -> £m
A23: =Calc!A$133 -> C_APP8016WR | E23: =Calc!E$133 -> Water resources 2020 RCV CPIH inflated ~ 1 April (opening balance) at 2017-18 CPIH deflated price base | F23: =Calc!F$133 -> 0 | G23: =Calc!G$133 -> £m
A25: =Calc!A$83 -> C_APP8022WN | E25: =Calc!E$83 -> Water network plus IFRS16 RCV adjustment at 2017-18 FYA CPIH deflated price base | F25: =Calc!F$83 -> 0 | G25: =Calc!G$83 -> £m
A26: =Calc!A$168 -> C_APP8014WN | E26: =Calc!E$168 -> Water network plus RCV RPI inflated ~ 1 April (opening balance) at 2017-18 CPIH deflated price base | F26: =Calc!F$168 -> -47.490683 | G26: =Calc!G$168 -> £m
A27: =Calc!A$172 -> C_APP8016WN | E27: =Calc!E$172 -> Water network plus RCV CPIH inflated ~ 1 April (opening balance) at 2017-18 CPIH deflated price base | F27: =Calc!F$172 -> -47.490683 | G27: =Calc!G$172 -> £m
B30: PR14 reconciliation adjustments expressed in 2017-18 FYA CPIH deflated price base by table
C31: Table App9
A32: =Calc!A$70 -> C_A7011W | E32: =Calc!E$70 -> Water ~ NPV effect of 50% of proceeds from disposals of interest in land at 2017-18 FYA CPIH deflated price base | F32: =Calc!F$70 -> -0.8330643959 | G32: =Calc!G$70 -> £m
C33: Table App25
A34: =Calc!A$68 -> C_APP25003 | E34: =Calc!E$68 -> Water ~ Total adjustment RCV carry forward to PR19 at 2017-18 FYA CPIH deflated price base | F34: =Calc!F$68 -> -28.21920582 | G34: =Calc!G$68 -> £m
A35: =Calc!A$69 -> C_APP25007 | E35: =Calc!E$69 -> Water ~ CIS RCV inflation correction at 2017-18 FYA CPIH deflated price base | F35: =Calc!F$69 -> -58.21237827 | G35: =Calc!G$69 -> £m
C36: Table App27
A37: =Calc!A$71 -> C_APP27048 | E37: =Calc!E$71 -> ODI end of period RCV adjustment ~ Water resources at 2017-18 FYA CPIH deflated price base | F37: =Calc!F$71 -> 0 | G37: =Calc!G$71 -> £m
A38: =Calc!A$72 -> C_APP27049 | E38: =Calc!E$72 -> ODI end of period RCV adjustment ~ Water network plus at 2017-18 FYA CPIH deflated price base | F38: =Calc!F$72 -> 0 | G38: =Calc!G$72 -> £m
C39: Table WS15
A40: =Calc!A$73 -> C_WS15027 | E40: =Calc!E$73 -> Water: Totex menu RCV adjustment at 2017-18 FYA CPIH deflated price base | F40: =Calc!F$73 -> -7.716717512 | G40: =Calc!G$73 -> £m
C41: No table
A42: =Calc!A$74 -> C030 | E42: =Calc!E$74 -> Water ~ Other adjustment to wholesale RCV at 2017-18 FYA CPIH deflated price base | F42: =Calc!F$74 -> 0 | G42: =Calc!G$74 -> £m
A45: WASTEWATER SERVICES
B47: Values expressed in 2017-18 FYE CPIH deflated price base for table App8
A48: =Calc!A$214 -> C_APP8002WW | E48: =Calc!E$214 -> Wholesale wastewater closing RCV at 31 March 2020 before midnight adjustments at 2017-18 FYE CPIH deflated price base | F48: =Calc!F$214 -> 0 | G48: =Calc!G$214 -> £m
A49: =Calc!A$215 -> C_APP8003WW | E49: =Calc!E$215 -> Wastewater ~ Total adjustment RCV carry forward to PR19 at 2017-18 FYE CPIH deflated price base | F49: =Calc!F$215 -> -2.502933057 | G49: =Calc!G$215 -> £m
A50: =Calc!A$216 -> C_APP8004WW | E50: =Calc!E$216 -> Wastewater ~ CIS RCV inflation correction at 2017-18 FYE CPIH deflated price base | F50: =Calc!F$216 -> -75.35045181 | G50: =Calc!G$216 -> £m
A51: =Calc!A$217 -> C_APP8005WW | E51: =Calc!E$217 -> Wastewater ~ NPV effect of 50% of proceeds from disposals of interest in land at 2017-18 FYE CPIH deflated price base | F51: =Calc!F$217 -> -4.101792686 | G51: =Calc!G$217 -> £m
A52: =Calc!A$218 -> C_APP8006WW | E52: =Calc!E$218 -> Wastewater ~ ODI RCV adjustment allocated to Wastewater network plus at 2017-18 FYE CPIH deflated price base | F52: =Calc!F$218 -> 0 | G52: =Calc!G$218 -> £m
A53: =Calc!A$219 -> C_APP8008WW | E53: =Calc!E$219 -> Wastewater ~ Totex menu RCV adjustment at 2017-18 FYE CPIH deflated price base | F53: =Calc!F$219 -> -152.2839133 | G53: =Calc!G$219 -> £m
A54: =Calc!A$220 -> C_APP8009WW | E54: =Calc!E$220 -> Wastewater ~ Other adjustment to wholesale RCV at 2017-18 FYE CPIH deflated price base | F54: =Calc!F$220 -> 0 | G54: =Calc!G$220 -> £m
A55: =Calc!A$221 -> C_APP8010WW | E55: =Calc!E$221 -> Total wholesale wastewater RCV at 31 March 2020 post midnight adjustments before allocation to price control units at 2017-18 FYE CPIH deflated price base | F55: =Calc!F$221 -> -234.2390909 | G55: =Calc!G$221 -> £m
B57: Values expressed in 2017-18 FYA CPIH deflated price base on table App8
A58: =Calc!A$244 -> C_RCV1011BIO_FYA | E58: =Calc!E$244 -> Bioresources RCV (prior to midnight adjustments) 31 March 2020 at 2017-18 FYA CPIH deflated price base | F58: =Calc!F$244 -> 0 | G58: =Calc!G$244 -> £m
A59: =Calc!A$253 -> C_APP8022WWN | E59: =Calc!E$253 -> Wastewater network plus IFRS16 RCV adjustment at 2017-18 FYA CPIH deflated price base | F59: =Calc!F$253 -> 0 | G59: =Calc!G$253 -> £m
A60: =Calc!A$296 -> C_APP8014WWN | E60: =Calc!E$296 -> Wastewater network plus RCV RPI inflated ~ 1 April (opening balance) at 2017-18 CPIH deflated price base | F60: =Calc!F$296 -> -116.1351915 | G60: =Calc!G$296 -> £m
A61: =Calc!A$300 -> C_APP8016WWN | E61: =Calc!E$300 -> Wastewater network plus RCV CPIH inflated ~ 1 April (opening balance) at 2017-18 CPIH deflated price base | F61: =Calc!F$300 -> -116.1351915 | G61: =Calc!G$300 -> £m
A63: =Calc!A$252 -> C_APP8022BIO | E63: =Calc!E$252 -> Bioresources IFRS16 RCV adjustment at 2017-18 FYA CPIH deflated price base | F63: =Calc!F$252 -> 0 | G63: =Calc!G$252 -> £m
A64: =Calc!A$329 -> C_APP8014BIO | E64: =Calc!E$329 -> Bioresources 2020 RCV RPI inflated ~ 1 April (opening balance) at 2017-18 CPIH deflated price base | F64: =Calc!F$329 -> 0 | G64: =Calc!G$329 -> £m
A65: =Calc!A$333 -> C_APP8016BIO | E65: =Calc!E$333 -> Bioresources 2020 RCV CPIH inflated ~ 1 April (opening balance) at 2017-18 CPIH deflated price base | F65: =Calc!F$333 -> 0 | G65: =Calc!G$333 -> £m
B68: PR14 reconciliation adjustments expressed in 2017-18 FYA CPIH deflated price base by table
C69: Table App9
A70: =Calc!A$235 -> C_A7011WW | E70: =Calc!E$235 -> Wastewater ~ NPV effect of 50% of proceeds from disposals of interest in land at 2017-18 FYA CPIH deflated price base | F70: =Calc!F$235 -> -4.067318374 | G70: =Calc!G$235 -> £m
C71: Table App25
A72: =Calc!A$233 -> C_APP25005 | E72: =Calc!E$233 -> Wastewater ~ Total Adjustment RCV carry forward to PR19 at 2017-18 FYA CPIH deflated price base | F72: =Calc!F$233 -> -2.48189667 | G72: =Calc!G$233 -> £m
A73: =Calc!A$234 -> C_APP25008 | E73: =Calc!E$234 -> Wastewater ~ CIS RCV inflation correction at 2017-18 FYA CPIH deflated price base | F73: =Calc!F$234 -> -74.71715432 | G73: =Calc!G$234 -> £m
C74: Table App27
A75: =Calc!A$236 -> C_APP27050 | E75: =Calc!E$236 -> ODI end of period RCV adjustment ~ Wastewater network plus at 2017-18 FYA CPIH deflated price base | F75: =Calc!F$236 -> 0 | G75: =Calc!G$236 -> £m
C76: Table WWS15
A77: =Calc!A$237 -> C_WWS15022 | E77: =Calc!E$237 -> Wastewater: Totex menu RCV adjustment at 2017-18 FYA CPIH deflated price base | F77: =Calc!F$237 -> -151.0040136 | G77: =Calc!G$237 -> £m
C78: No table
A79: =Calc!A$238 -> C040 | E79: =Calc!E$238 -> Wastewater ~ Other adjustment to wholesale RCV at 2017-18 FYA CPIH deflated price base | F79: =Calc!F$238 -> 0 | G79: =Calc!G$238 -> £m
A82: DUMMY
B84: Values expressed in 2017-18 FYE CPIH deflated price base for table App8
A85: =Calc!A$371 -> C_APP8002DMMY | E85: =Calc!E$371 -> Dummy RCV (prior to midnight adjustments) 31 March 2020 at 2017-18 FYE CPIH deflated price base | F85: =Calc!F$371 -> 0 | G85: =Calc!G$371 -> £m
A86: =Calc!A$372 -> C_APP8006DMMY | E86: =Calc!E$372 -> ODI end of period RCV adjustment allocated to dummy at 2017-18 FYE CPIH deflated price base | F86: =Calc!F$372 -> 0 | G86: =Calc!G$372 -> £m
A87: =Calc!A$373 -> C_APP8008DMMY | E87: =Calc!E$373 -> Dummy ~ Totex menu RCV adjustment at 2017-18 FYE CPIH deflated price base | F87: =Calc!F$373 -> 0 | G87: =Calc!G$373 -> £m
A88: =Calc!A$375 -> C_APP8009DMMY | E88: =Calc!E$375 -> Dummy: NPV effect of 100% of proceeds from disposals of interest in land at 2017-18 FYE CPIH deflated price base | F88: =Calc!F$375 -> 0 | G88: =Calc!G$375 -> £m
A89: =Calc!A$374 -> C_APP8005DMMY | E89: =Calc!E$374 -> Dummy ~ Other adjustment to wholesale RCV at 2017-18 FYE CPIH deflated price base | F89: =Calc!F$374 -> 0 | G89: =Calc!G$374 -> £m
A90: =Calc!A$376 -> C_APP8010DMMY | E90: =Calc!E$376 -> Total dummy RCV at 31 March 2020 post midnight adjustments at 2017-18 FYE CPIH deflated price base | F90: =Calc!F$376 -> 0 | G90: =Calc!G$376 -> £m
B92: Values expressed in 2017-18 FYA CPIH deflated price base on table App8
A93: =Calc!A$396 -> C_APP8022DMMY | E93: =Calc!E$396 -> Dummy IFRS16 RCV adjustment at 2017-18 FYA CPIH deflated price base | F93: =Calc!F$396 -> 0 | G93: =Calc!G$396 -> £m
A94: =Calc!A$432 -> C_APP8014DMMY | E94: =Calc!E$432 -> Dummy 2020 RCV RPI inflated ~ 1 April (opening balance) at 2017-18 CPIH deflated price base | F94: =Calc!F$432 -> 0 | G94: =Calc!G$432 -> £m
A95: =Calc!A$436 -> C_APP8016DMMY | E95: =Calc!E$436 -> Dummy 2020 RCV CPIH inflated ~ 1 April (opening balance) at 2017-18 CPIH deflated price base | F95: =Calc!F$436 -> 0 | G95: =Calc!G$436 -> £m
B97: PR14 reconciliation adjustments expressed in 2017-18 FYA CPIH deflated price base by table
C98: Table App9
A99: =Calc!A$389 -> C_A7011DMMY | E99: =Calc!E$389 -> Dummy: NPV effect of 100% of proceeds from disposals of interest in land at 2017-18 FYA CPIH deflated price base | F99: =Calc!F$389 -> 0 | G99: =Calc!G$389 -> £m
C100: Table App27
A101: =Calc!A$386 -> C_APP27051 | E101: =Calc!E$386 -> ODI end of period RCV adjustment ~ Thames Tideway at 2017-18 FYA CPIH deflated price base | F101: =Calc!F$386 -> 0 | G101: =Calc!G$386 -> £m
C102: Table Dmmy10
A103: =Calc!A$387 -> C_WWS15022DMMY | E103: =Calc!E$387 -> Dummy ~ Totex menu RCV adjustment at 2017-18 FYA CPIH deflated price base | F103: =Calc!F$387 -> 0 | G103: =Calc!G$387 -> £m

Sheet F_Outputs
C1: PR19PD010
A2: Acronym | B2: Reference | C2: Item description | D2: Unit | E2: Model | F2: 2019-20 | G2: 2020-21 | H2: PR19 application
B4: C001_PR19PD010 | C4: 1st model column start date | D4: nr | E4: Price Review 2019 | H4: =Inputs!$F$13 -> 41000
B5: C002_PR19PD010 | C5: First modelling column financial year# | D5: nr | E5: Price Review 2019 | H5: =Inputs!$F$16 -> 2013
B6: C003_PR19PD010 | C6: Financial year end month number | D6: nr | E6: Price Review 2019 | H6: =Inputs!$F$17 -> 3
B7: C004_PR19PD010 | C7: Pre - forecast period | D7: Text | E7: Price Review 2019 | H7: =Inputs!$F$20 -> Pre-Fcst
B8: C005_PR19PD010 | C8: Forecast period | D8: Text | E8: Price Review 2019 | H8: =Inputs!$F$21 -> Forecast
B9: C006_PR19PD010 | C9: Post - forecast period | D9: Text | E9: Price Review 2019 | H9: =Inputs!$F$22 -> Post-Fcst
B10: C007_PR19PD010 | C10: Forecast start date | D10: nr | E10: Price Review 2019 | H10: =Inputs!$F$26 -> 43922
B11: C008_PR19PD010 | C11: Forecast duration | D11: nr | E11: Price Review 2019 | H11: =Inputs!$F$27 -> 5
B12: C009_PR19PD010 | C12: Forecast duration (text) | D12: Text | E12: Price Review 2019 | H12: =Inputs!$F$28 -> 2020-25
B13: C010_PR19PD010 | C13: Inflation: Year reference for FYA base price 1 | D13: nr | E13: Price Review 2019 | H13: =Inputs!$F$69 -> 2013
B14: C011_PR19PD010 | C14: Inflation: Year reference for FYA base price 2 | D14: nr | E14: Price Review 2019 | H14: =Inputs!$F$70 -> 2018
B15: C012_PR19PD010 | C15: Inflation: Year reference for FYE base price | D15: nr | E15: Price Review 2019 | H15: =Inputs!$F$71 -> 2018
B16: C013_PR19PD010 | C16: Inflation: Year reference for FYE end price | D16: nr | E16: Price Review 2019 | H16: =Inputs!$F$72 -> 2020
B17: C014_PR19PD010 | C17: Deflation: Year reference for FYE base price | D17: nr | E17: Price Review 2019 | H17: =Inputs!$F$76 -> 2020
B18: C015_PR19PD010 | C18: Deflation: Year reference for FYA end price | D18: nr | E18: Price Review 2019 | H18: =Inputs!$F$77 -> 2018
B19: C016_PR19PD010 | C19: Deflation: Year reference for FYE base price - IFRS 16 | D19: nr | E19: Price Review 2019 | H19: =Inputs!$F$78 -> 2018
B20: C017_PR19PD010 | C20: Months per model period | D20: nr | E20: Price Review 2019 | H20: =Inputs!$F$133 -> 12
B21: C018_PR19PD010 | C21: Months in a year | D21: nr | E21: Price Review 2019 | H21: =Inputs!$F$135 -> 12
B22: C019_PR19PD010 | C22: Days in a year | D22: nr | E22: Price Review 2019 | H22: =Inputs!$F$137 -> 365
B23: C020_PR19PD010 | C23: % of RCV to index by RPI - water services | D23: % | E23: Price Review 2019 | H23: =Inputs!$F94 -> 0.5
B24: C021_PR19PD010 | C24: % of RCV to index by RPI - wastewater services | D24: % | E24: Price Review 2019 | H24: =Inputs!$F112 -> 0.5
B25: C022_PR19PD010 | C25: % of RCV to index by RPI - dummy | D25: % | E25: Price Review 2019 | H25: =Inputs!$F126 -> 0.5
B26: C_APP8002W_PR19PD010 | C26: Wholesale water closing RCV at 31 March 2020 before midnight adjustments at 2017-18 FYE CPIH deflated price base | D26: £m | E26: Price Review 2019 | F26: =Summary_Output!$F10 -> 0
B27: C_APP8003W_PR19PD010 | C27: Water ~ Total Adjustment RCV carry forward to PR19 at 2017-18 FYE CPIH deflated price base | D27: £m | E27: Price Review 2019 | F27: =Summary_Output!$F11 -> -28.45838988
B28: C_APP8004W_PR19PD010 | C28: Water ~ CIS RCV inflation correction at 2017-18 FYE CPIH deflated price base | D28: £m | E28: Price Review 2019 | F28: =Summary_Output!$F12 -> -58.7057824
B29: C_APP8005W_PR19PD010 | C29: Water ~ NPV effect of 50% of proceeds from disposals of interest in land at 2017-18 FYE CPIH deflated price base | D29: £m | E29: Price Review 2019 | F29: =Summary_Output!$F13 -> -0.8401253927
B30: C_APP8006W_PR19PD010 | C30: Water ~ ODI RCV adjustment allocated to Water resources at 2017-18 FYE CPIH deflated price base | D30: £m | E30: Price Review 2019 | F30: =Summary_Output!$F14 -> 0
B31: C_APP8007W_PR19PD010 | C31: Water ~ ODI RCV adjustment allocated to Water network plus at 2017-18 FYE CPIH deflated price base | D31: £m | E31: Price Review 2019 | F31: =Summary_Output!$F15 -> 0
B32: C_APP8008W_PR19PD010 | C32: Water ~ Totex menu RCV adjustment at 2017-18 FYE CPIH deflated price base | D32: £m | E32: Price Review 2019 | F32: =Summary_Output!$F16 -> -7.782123882
B33: C_APP8009W_PR19PD010 | C33: Water ~ Other adjustment to wholesale RCV at 2017-18 FYE CPIH deflated price base | D33: £m | E33: Price Review 2019 | F33: =Summary_Output!$F17 -> 0
B34: C_APP8010W_PR19PD010 | C34: Total wholesale water RCV at 31 March 2020 post midnight adjustments before allocation to price control units at 2017-18 FYE CPIH deflated price base | D34: £m | E34: Price Review 2019 | F34: =Summary_Output!$F18 -> -95.78642156
B35: C_APP8022WR_PR19PD010 | C35: Water resources IFRS16 RCV adjustment at 2017-18 FYA CPIH deflated price base | D35: £m | E35: Price Review 2019 | F35: =Summary_Output!$F21 -> 0
B36: C_APP8014WR_PR19PD010 | C36: Water resources 2020 RCV RPI inflated ~ 1 April (opening balance) at 2017-18 CPIH deflated price base | D36: £m | E36: Price Review 2019 | G36: =Summary_Output!$F22 -> 0
B37: C_APP8016WR_PR19PD010 | C37: Water resources 2020 RCV CPIH inflated ~ 1 April (opening balance) at 2017-18 CPIH deflated price base | D37: £m | E37: Price Review 2019 | G37: =Summary_Output!$F23 -> 0
B38: C_APP8022WN_PR19PD010 | C38: Water network plus IFRS16 RCV adjustment at 2017-18 FYA CPIH deflated price base | D38: £m | E38: Price Review 2019 | F38: =Summary_Output!$F25 -> 0
B39: C_APP8014WN_PR19PD010 | C39: Water network plus RCV RPI inflated ~ 1 April (opening balance) at 2017-18 CPIH deflated price base | D39: £m | E39: Price Review 2019 | G39: =Summary_Output!$F26 -> -47.490683
B40: C_APP8016WN_PR19PD010 | C40: Water network plus RCV CPIH inflated ~ 1 April (opening balance) at 2017-18 CPIH deflated price base | D40: £m | E40: Price Review 2019 | G40: =Summary_Output!$F27 -> -47.490683
B41: C_A7011W_PR19PD010 | C41: Water ~ NPV effect of 50% of proceeds from disposals of interest in land at 2017-18 FYA CPIH deflated price base | D41: £m | E41: Price Review 2019 | F41: =Summary_Output!$F32 -> -0.8330643959
B42: C_APP25003_PR19PD010 | C42: Water ~ Total adjustment RCV carry forward to PR19 at 2017-18 FYA CPIH deflated price base | D42: £m | E42: Price Review 2019 | F42: =Summary_Output!$F34 -> -28.21920582
B43: C_APP25007_PR19PD010 | C43: Water ~ CIS RCV inflation correction at 2017-18 FYA CPIH deflated price base | D43: £m | E43: Price Review 2019 | F43: =Summary_Output!$F35 -> -58.21237827
B44: C_APP27048_PR19PD010 | C44: ODI end of period RCV adjustment ~ Water resources at 2017-18 FYA CPIH deflated price base | D44: £m | E44: Price Review 2019 | F44: =Summary_Output!$F37 -> 0
B45: C_APP27049_PR19PD010 | C45: ODI end of period RCV adjustment ~ Water network plus at 2017-18 FYA CPIH deflated price base | D45: £m | E45: Price Review 2019 | F45: =Summary_Output!$F38 -> 0
B46: C_WS15027_PR19PD010 | C46: Water: Totex menu RCV adjustment at 2017-18 FYA CPIH deflated price base | D46: £m | E46: Price Review 2019 | F46: =Summary_Output!$F40 -> -7.716717512
B47: C030_PR19PD010 | C47: Water ~ Other adjustment to wholesale RCV at 2017-18 FYA CPIH deflated price base | D47: £m | E47: Price Review 2019 | F47: =Summary_Output!$F42 -> 0
B48: C_APP8002WW_PR19PD010 | C48: Wholesale wastewater closing RCV at 31 March 2020 before midnight adjustments at 2017-18 FYE CPIH deflated price base | D48: £m | E48: Price Review 2019 | F48: =Summary_Output!$F48 -> 0
B49: C_APP8003WW_PR19PD010 | C49: Wastewater ~ Total adjustment RCV carry forward to PR19 at 2017-18 FYE CPIH deflated price base | D49: £m | E49: Price Review 2019 | F49: =Summary_Output!$F49 -> -2.502933057
B50: C_APP8004WW_PR19PD010 | C50: Wastewater ~ CIS RCV inflation correction at 2017-18 FYE CPIH deflated price base | D50: £m | E50: Price Review 2019 | F50: =Summary_Output!$F50 -> -75.35045181
B51: C_APP8005WW_PR19PD010 | C51: Wastewater ~ NPV effect of 50% of proceeds from disposals of interest in land at 2017-18 FYE CPIH deflated price base | D51: £m | E51: Price Review 2019 | F51: =Summary_Output!$F51 -> -4.101792686
B52: C_APP8006WW_PR19PD010 | C52: Wastewater ~ ODI RCV adjustment allocated to Wastewater network plus at 2017-18 FYE CPIH deflated price base | D52: £m | E52: Price Review 2019 | F52: =Summary_Output!$F52 -> 0
B53: C_APP8008WW_PR19PD010 | C53: Wastewater ~ Totex menu RCV adjustment at 2017-18 FYE CPIH deflated price base | D53: £m | E53: Price Review 2019 | F53: =Summary_Output!$F53 -> -152.2839133
B54: C_APP8009WW_PR19PD010 | C54: Wastewater ~ Other adjustment to wholesale RCV at 2017-18 FYE CPIH deflated price base | D54: £m | E54: Price Review 2019 | F54: =Summary_Output!$F54 -> 0
B55: C_APP8010WW_PR19PD010 | C55: Total wholesale wastewater RCV at 31 March 2020 post midnight adjustments before allocation to price control units at 2017-18 FYE CPIH deflated price base | D55: £m | E55: Price Review 2019 | F55: =Summary_Output!$F55 -> -234.2390909
B56: C_RCV1011BIO_FYA_PR19PD010 | C56: Bioresources RCV (prior to midnight adjustments) 31 March 2020 at 2017-18 FYA CPIH deflated price base | D56: £m | E56: Price Review 2019 | F56: =Summary_Output!$F58 -> 0
B57: C_APP8022WWN_PR19PD010 | C57: Wastewater network plus IFRS16 RCV adjustment at 2017-18 FYA CPIH deflated price base | D57: £m | E57: Price Review 2019 | F57: =Summary_Output!$F59 -> 0
B58: C_APP8014WWN_PR19PD010 | C58: Wastewater network plus RCV RPI inflated ~ 1 April (opening balance) at 2017-18 CPIH deflated price base | D58: £m | E58: Price Review 2019 | G58: =Summary_Output!$F60 -> -116.1351915
B59: C_APP8016WWN_PR19PD010 | C59: Wastewater network plus RCV CPIH inflated ~ 1 April (opening balance) at 2017-18 CPIH deflated price base | D59: £m | E59: Price Review 2019 | G59: =Summary_Output!$F61 -> -116.1351915
B60: C_APP8022BIO_PR19PD010 | C60: Bioresources IFRS16 RCV adjustment at 2017-18 FYA CPIH deflated price base | D60: £m | E60: Price Review 2019 | F60: =Summary_Output!$F63 -> 0
B61: C_APP8014BIO_PR19PD010 | C61: Bioresources 2020 RCV RPI inflated ~ 1 April (opening balance) at 2017-18 CPIH deflated price base | D61: £m | E61: Price Review 2019 | G61: =Summary_Output!$F64 -> 0
B62: C_APP8016BIO_PR19PD010 | C62: Bioresources 2020 RCV CPIH inflated ~ 1 April (opening balance) at 2017-18 CPIH deflated price base | D62: £m | E62: Price Review 2019 | G62: =Summary_Output!$F65 -> 0
B63: C_A7011WW_PR19PD010 | C63: Wastewater ~ NPV effect of 50% of proceeds from disposals of interest in land at 2017-18 FYA CPIH deflated price base | D63: £m | E63: Price Review 2019 | F63: =Summary_Output!$F70 -> -4.067318374
B64: C_APP25005_PR19PD010 | C64: Wastewater ~ Total Adjustment RCV carry forward to PR19 at 2017-18 FYA CPIH deflated price base | D64: £m | E64: Price Review 2019 | F64: =Summary_Output!$F72 -> -2.48189667
B65: C_APP25008_PR19PD010 | C65: Wastewater ~ CIS RCV inflation correction at 2017-18 FYA CPIH deflated price base | D65: £m | E65: Price Review 2019 | F65: =Summary_Output!$F73 -> -74.71715432
B66: C_APP27050_PR19PD010 | C66: ODI end of period RCV adjustment ~ Wastewater network plus at 2017-18 FYA CPIH deflated price base | D66: £m | E66: Price Review 2019 | F66: =Summary_Output!$F75 -> 0
B67: C_WWS15022_PR19PD010 | C67: Wastewater: Totex menu RCV adjustment at 2017-18 FYA CPIH deflated price base | D67: £m | E67: Price Review 2019 | F67: =Summary_Output!$F77 -> -151.0040136
B68: C040_PR19PD010 | C68: Wastewater ~ Other adjustment to wholesale RCV at 2017-18 FYA CPIH deflated price base | D68: £m | E68: Price Review 2019 | F68: =Summary_Output!$F79 -> 0
B69: C_APP8002DMMY_PR19PD010 | C69: Dummy RCV (prior to midnight adjustments) 31 March 2020 at 2017-18 FYE CPIH deflated price base | D69: £m | E69: Price Review 2019 | F69: =Summary_Output!$F85 -> 0
B70: C_APP8006DMMY_PR19PD010 | C70: ODI end of period RCV adjustment allocated to dummy at 2017-18 FYE CPIH deflated price base | D70: £m | E70: Price Review 2019 | F70: =Summary_Output!$F86 -> 0
B71: C_APP8008DMMY_PR19PD010 | C71: Dummy ~ Totex menu RCV adjustment at 2017-18 FYE CPIH deflated price base | D71: £m | E71: Price Review 2019 | F71: =Summary_Output!$F87 -> 0
B72: C_APP8009DMMY_PR19PD010 | C72: Dummy: NPV effect of 100% of proceeds from disposals of interest in land at 2017-18 FYE CPIH deflated price base | D72: £m | E72: Price Review 2019 | F72: =Summary_Output!$F88 -> 0
B73: C_APP8005DMMY_PR19PD010 | C73: Dummy ~ Other adjustment to wholesale RCV at 2017-18 FYE CPIH deflated price base | D73: £m | E73: Price Review 2019 | F73: =Summary_Output!$F89 -> 0
B74: C_APP8010DMMY_PR19PD010 | C74: Total dummy RCV at 31 March 2020 post midnight adjustments at 2017-18 FYE CPIH deflated price base | D74: £m | E74: Price Review 2019 | F74: =Summary_Output!$F90 -> 0
B75: C_APP8022DMMY_PR19PD010 | C75: Dummy IFRS16 RCV adjustment at 2017-18 FYA CPIH deflated price base | D75: £m | E75: Price Review 2019 | F75: =Summary_Output!$F93 -> 0
B76: C_APP8014DMMY_PR19PD010 | C76: Dummy 2020 RCV RPI inflated ~ 1 April (opening balance) at 2017-18 CPIH deflated price base | D76: £m | E76: Price Review 2019 | G76: =Summary_Output!$F94 -> 0
B77: C_APP8016DMMY_PR19PD010 | C77: Dummy 2020 RCV CPIH inflated ~ 1 April (opening balance) at 2017-18 CPIH deflated price base | D77: £m | E77: Price Review 2019 | G77: =Summary_Output!$F95 -> 0
B78: C_A7011DMMY_PR19PD010 | C78: Dummy: NPV effect of 100% of proceeds from disposals of interest in land at 2017-18 FYA CPIH deflated price base | D78: £m | E78: Price Review 2019 | F78: =Summary_Output!$F99 -> 0
B79: C_APP27051_PR19PD010 | C79: ODI end of period RCV adjustment ~ Thames Tideway at 2017-18 FYA CPIH deflated price base | D79: £m | E79: Price Review 2019 | F79: =Summary_Output!$F101 -> 0
B80: C_WWS15022DMMY_PR19PD010 | C80: Dummy ~ Totex menu RCV adjustment at 2017-18 FYA CPIH deflated price base | D80: £m | E80: Price Review 2019 | F80: =Summary_Output!$F103 -> 0
B81: PR19QA_D0010_OUT_1 | C81: Date & Time for Model PR19D010 PR14 RCV adjustments | D81: Text | E81: Price Review 2019 | F81: =NOW() -> 2019-02-05T17:00:27.670 | G81: 2019-02-05T17:00:27.670 | H81: 2019-02-05T17:00:27.670
B82: PR19QA_D0010_OUT_2 | C82: Name & Path of Model PR19D010 PR14 RCV adjustments | D82: Text | E82: Price Review 2019 | F82: =MID(CELL("filename"),SEARCH("[",CELL("filename"))+1,SEARCH("]",CELL("filename"))-SEARCH("[",CELL("filename"))-1) -> Revenue adjustments feeder model_ANH_IAP.xlsm | G82: Revenue adjustments feeder model_ANH_IAP.xlsm | H82: Revenue adjustments feeder model_ANH_IAP.xlsm
